{"text_format":"1","workbook":"xlsx","n_sheets":14,"sheets":["Enero","Febrero","Marzo","Abril","Mayo","Junio","Julio","Agosto","Setiembre","Octubre","Noviembre","Diciembre","Informe","Configuración"],"not_rendered":{"charts":0,"images":0,"macros":1,"external_links":0,"defined_names":0,"comments":0,"pivot_tables":0},"unopened":[],"bounds":{"document_bytes":16777216,"sheet_cells":100000,"rows_first":2000,"rows_last":500,"rows_between":2000,"halvings":0,"cell_chars":16384,"cell_head_chars":4096},"cells_cut":0,"cells_raw":0,"read":"whole","date_system":"1900"}

{"sheet":"Enero","index":0,"n_rows":54,"n_cols":12,"rows_kept":54,"cut":false,"hidden":false,"merged":[]}
[null,"INFORME RNPQ MES","ENERO",{"$f":"Configuración!E2","v":2018},"SECCION",{"$f":"Configuración!G2","v":"TOXICO"}]
[]
[null,null,"STOCK","INGRESO 1","INGRESO 1","INGRESO 1","INGRESO 2","INGRESO 2","INGRESO 2","MERMA",null,"STOCK"]
["N°","SUSTANCIA CONTROLADA","ACTUAL","FECHA","CANTIDAD","REMITO","FECHA","CANTIDAD","REMITO","MENSUAL","OBSERVACIONES","ANTERIOR"]
[1,{"$f":"INDEX(Configuración!$A$3:'Configuración'!$B$52,A5,2)","v":"Acetato Etílico (en litros)"},{"$f":"$L5+$E5+$H5-$J5","v":0},null,null,null,null,null,null,null,null,{"$f":"Configuración!$C3","v":0}]
[2,{"$f":"INDEX(Configuración!$A$3:'Configuración'!$B$52,A6,2)","v":"Acetona (en litros)"},{"$f":"$L6+$E6+$H6-$J6","v":0},null,null,null,null,null,null,null,null,{"$f":"Configuración!$C4","v":0}]
[3,{"$f":"INDEX(Configuración!$A$3:'Configuración'!$B$52,A7,2)","v":"Acido Acético (en litros)"},0,null,null,null,null,null,null,null,null,{"$f":"Configuración!$C5","v":0}]
[4,{"$f":"INDEX(Configuración!$A$3:'Configuración'!$B$52,A8,2)","v":"Acido Clorhídrico (en litros)"},0,null,null,null,null,null,null,null,null,{"$f":"Configuración!$C6","v":0}]
[5,{"$f":"INDEX(Configuración!$A$3:'Configuración'!$B$52,A9,2)","v":"Acido Fórmico, sales y sus derivados (en litros)"},0,null,null,null,null,null,null,null,null,{"$f":"Configuración!$C7","v":0}]
[6,{"$f":"INDEX(Configuración!$A$3:'Configuración'!$B$52,A10,2)","v":"Acido Sulfúrico (en litros)"},0,null,null,null,null,null,null,null,null,{"$f":"Configuración!$C8","v":0}]
[7,{"$f":"INDEX(Configuración!$A$3:'Configuración'!$B$52,A11,2)","v":"Alcohol Etílico (en litros)"},0,null,null,null,null,null,null,null,null,{"$f":"Configuración!$C9","v":0}]
[8,{"$f":"INDEX(Configuración!$A$3:'Configuración'!$B$52,A12,2)","v":"Alcohol Isobutílico (en litros)"},0,null,null,null,null,null,null,null,null,{"$f":"Configuración!$C10","v":0}]
[9,{"$f":"INDEX(Configuración!$A$3:'Configuración'!$B$52,A13,2)","v":"Alcohol Isopropílico (en litros)"},0,null,null,null,null,null,null,null,null,{"$f":"Configuración!$C11","v":0}]
[10,{"$f":"INDEX(Configuración!$A$3:'Configuración'!$B$52,A14,2)","v":"Alcohol Metílico (en litros)"},0,null,null,null,null,null,null,null,null,{"$f":"Configuración!$C12","v":0}]
[11,{"$f":"INDEX(Configuración!$A$3:'Configuración'!$B$52,A15,2)","v":"Amoníaco Anhídro o en disolución acuosa (en litros)"},0,null,null,null,null,null,null,null,null,{"$f":"Configuración!$C13","v":0}]
[12,{"$f":"INDEX(Configuración!$A$3:'Configuración'!$B$52,A16,2)","v":"Anhídrido Acético (en litros)"},0,null,null,null,null,null,null,null,null,{"$f":"Configuración!$C14","v":0}]
[13,{"$f":"INDEX(Configuración!$A$3:'Configuración'!$B$52,A17,2)","v":"Benceno (en litros)"},0,null,null,null,null,null,null,null,null,{"$f":"Configuración!$C15","v":0}]
[14,{"$f":"INDEX(Configuración!$A$3:'Configuración'!$B$52,A18,2)","v":"Bicarbonato de Sodio (en kilogramos)"},0,null,null,null,null,null,null,null,null,{"$f":"Configuración!$C16","v":0}]
[15,{"$f":"INDEX(Configuración!$A$3:'Configuración'!$B$52,A19,2)","v":"Carbonato de Potasio (en kilogramos)"},0,null,null,null,null,null,null,null,null,{"$f":"Configuración!$C17","v":0}]
[16,{"$f":"INDEX(Configuración!$A$3:'Configuración'!$B$52,A20,2)","v":"Carbonato de Sodio (en kilogramos)"},0,null,null,null,null,null,null,null,null,{"$f":"Configuración!$C18","v":0}]
[17,{"$f":"INDEX(Configuración!$A$3:'Configuración'!$B$52,A21,2)","v":"Cianuro de Potasio (en kilogramos)"},0,null,null,null,null,null,null,null,null,{"$f":"Configuración!$C19","v":0}]
[18,{"$f":"INDEX(Configuración!$A$3:'Configuración'!$B$52,A22,2)","v":"Cianuro de Sodio (en kilogramos)"},0,null,null,null,null,null,null,null,null,{"$f":"Configuración!$C20","v":0}]
[19,{"$f":"INDEX(Configuración!$A$3:'Configuración'!$B$52,A23,2)","v":"Cloroformo (en litros)"},0,null,null,null,null,null,null,null,null,{"$f":"Configuración!$C21","v":0}]
[20,{"$f":"INDEX(Configuración!$A$3:'Configuración'!$B$52,A24,2)","v":"Cloruro de Amonio (en kilogramos)"},0,null,null,null,null,null,null,null,null,{"$f":"Configuración!$C22","v":0}]
[21,{"$f":"INDEX(Configuración!$A$3:'Configuración'!$B$52,A25,2)","v":"Cloruro de Metileno (en litros)"},0,null,null,null,null,null,null,null,null,{"$f":"Configuración!$C23","v":0}]
[22,{"$f":"INDEX(Configuración!$A$3:'Configuración'!$B$52,A26,2)","v":"Dietilamina (en litros)"},0,null,null,null,null,null,null,null,null,{"$f":"Configuración!$C24","v":0}]
[23,{"$f":"INDEX(Configuración!$A$3:'Configuración'!$B$52,A27,2)","v":"Eter Etílico (en litros)"},0,null,null,null,null,null,null,null,null,{"$f":"Configuración!$C25","v":0}]
[24,{"$f":"INDEX(Configuración!$A$3:'Configuración'!$B$52,A28,2)","v":"Hexano (en litros)"},0,null,null,null,null,null,null,null,null,{"$f":"Configuración!$C26","v":0}]
[25,{"$f":"INDEX(Configuración!$A$3:'Configuración'!$B$52,A29,2)","v":"Hidróxido de Potasio (en kilogramos)"},0,null,null,null,null,null,null,null,null,{"$f":"Configuración!$C27","v":0}]
[26,{"$f":"INDEX(Configuración!$A$3:'Configuración'!$B$52,A30,2)","v":"Hidróxido de Sodio (en kilogramos)"},0,null,null,null,null,null,null,null,null,{"$f":"Configuración!$C28","v":0}]
[27,{"$f":"INDEX(Configuración!$A$3:'Configuración'!$B$52,A31,2)","v":"Oxido de Calcio (en kilogramos)"},0,null,null,null,null,null,null,null,null,{"$f":"Configuración!$C29","v":0}]
[28,{"$f":"INDEX(Configuración!$A$3:'Configuración'!$B$52,A32,2)","v":"Permanganato de Potasio (en kilogramos)"},0,null,null,null,null,null,null,null,null,{"$f":"Configuración!$C30","v":0}]
[29,{"$f":"INDEX(Configuración!$A$3:'Configuración'!$B$52,A33,2)","v":"Piperidina (en litros)"},0,null,null,null,null,null,null,null,null,{"$f":"Configuración!$C31","v":0}]
[30,{"$f":"INDEX(Configuración!$A$3:'Configuración'!$B$52,A34,2)","v":"Sulfato de Sodio (en kilogramos)"},0,null,null,null,null,null,null,null,null,{"$f":"Configuración!$C32","v":0}]
[31,{"$f":"INDEX(Configuración!$A$3:'Configuración'!$B$52,A35,2)","v":"Tolueno (en litros)"},0,null,null,null,null,null,null,null,null,{"$f":"Configuración!$C33","v":0}]
[32,{"$f":"INDEX(Configuración!$A$3:'Configuración'!$B$52,A36,2)","v":"Xilenos (en litros)"},0,null,null,null,null,null,null,null,null,{"$f":"Configuración!$C34","v":0}]
[33,{"$f":"INDEX(Configuración!$A$3:'Configuración'!$B$52,A37,2)","v":"Yodo (en litros)"},0,null,null,null,null,null,null,null,null,{"$f":"Configuración!$C35","v":0}]
[34,{"$f":"INDEX(Configuración!$A$3:'Configuración'!$B$52,A38,2)","v":"-"},0,null,null,null,null,null,null,null,null,{"$f":"Configuración!$C36","v":0}]
[35,{"$f":"INDEX(Configuración!$A$3:'Configuración'!$B$52,A39,2)","v":"-"},0,null,null,null,null,null,null,null,null,{"$f":"Configuración!$C37","v":0}]
[36,{"$f":"INDEX(Configuración!$A$3:'Configuración'!$B$52,A40,2)","v":"-"},0,null,null,null,null,null,null,null,null,{"$f":"Configuración!$C38","v":0}]
[37,{"$f":"INDEX(Configuración!$A$3:'Configuración'!$B$52,A41,2)","v":"-"},0,null,null,null,null,null,null,null,null,{"$f":"Configuración!$C39","v":0}]
[38,{"$f":"INDEX(Configuración!$A$3:'Configuración'!$B$52,A42,2)","v":"-"},0,null,null,null,null,null,null,null,null,{"$f":"Configuración!$C40","v":0}]
[39,{"$f":"INDEX(Configuración!$A$3:'Configuración'!$B$52,A43,2)","v":"-"},0,null,null,null,null,null,null,null,null,{"$f":"Configuración!$C41","v":0}]
[40,{"$f":"INDEX(Configuración!$A$3:'Configuración'!$B$52,A44,2)","v":"-"},0,null,null,null,null,null,null,null,null,{"$f":"Configuración!$C42","v":0}]
[41,{"$f":"INDEX(Configuración!$A$3:'Configuración'!$B$52,A45,2)","v":"-"},0,null,null,null,null,null,null,null,null,{"$f":"Configuración!$C43","v":0}]
[42,{"$f":"INDEX(Configuración!$A$3:'Configuración'!$B$52,A46,2)","v":"-"},0,null,null,null,null,null,null,null,null,{"$f":"Configuración!$C44","v":0}]
[43,{"$f":"INDEX(Configuración!$A$3:'Configuración'!$B$52,A47,2)","v":"-"},0,null,null,null,null,null,null,null,null,{"$f":"Configuración!$C45","v":0}]
[44,{"$f":"INDEX(Configuración!$A$3:'Configuración'!$B$52,A48,2)","v":"-"},0,null,null,null,null,null,null,null,null,{"$f":"Configuración!$C46","v":0}]
[45,{"$f":"INDEX(Configuración!$A$3:'Configuración'!$B$52,A49,2)","v":"-"},0,null,null,null,null,null,null,null,null,{"$f":"Configuración!$C47","v":0}]
[46,{"$f":"INDEX(Configuración!$A$3:'Configuración'!$B$52,A50,2)","v":"-"},0,null,null,null,null,null,null,null,null,{"$f":"Configuración!$C48","v":0}]
[47,{"$f":"INDEX(Configuración!$A$3:'Configuración'!$B$52,A51,2)","v":"-"},0,null,null,null,null,null,null,null,null,{"$f":"Configuración!$C49","v":0}]
[48,{"$f":"INDEX(Configuración!$A$3:'Configuración'!$B$52,A52,2)","v":"-"},0,null,null,null,null,null,null,null,null,{"$f":"Configuración!$C50","v":0}]
[49,{"$f":"INDEX(Configuración!$A$3:'Configuración'!$B$52,A53,2)","v":"-"},0,null,null,null,null,null,null,null,null,{"$f":"Configuración!$C51","v":0}]
[50,{"$f":"INDEX(Configuración!$A$3:'Configuración'!$B$52,A54,2)","v":"-"},0,null,null,null,null,null,null,null,null,{"$f":"Configuración!$C52","v":0}]

{"sheet":"Febrero","index":1,"n_rows":54,"n_cols":12,"rows_kept":54,"cut":false,"hidden":false,"merged":[]}
[null,"INFORME RENPRE MES","FEBRERO",{"$f":"Configuración!E2","v":2018},"SECCION",{"$f":"Configuración!G2","v":"TOXICO"}]
[]
[null,null,"STOCK","INGRESO 1","INGRESO 1","INGRESO 1","INGRESO 2","INGRESO 2","INGRESO 2","MERMA",null,"STOCK"]
["N°","SUSTANCIA CONTROLADA","ACTUAL","FECHA","CANTIDAD","REMITO","FECHA","CANTIDAD","REMITO","MENSUAL","OBSERVACIONES","ANTERIOR"]
[1,{"$f":"INDEX(Configuración!$A$3:'Configuración'!$B$52,A5,2)","v":"Acetato Etílico (en litros)"},{"$f":"$L5+$E5+$H5-$J5","v":0},null,null,null,null,null,null,null,null,{"$f":"Enero!C5","v":0}]
[2,{"$f":"INDEX(Configuración!$A$3:'Configuración'!$B$52,A6,2)","v":"Acetona (en litros)"},{"$f":"$L6+$E6+$H6-$J6","v":0},null,null,null,null,null,null,null,null,{"$f":"Enero!C6","v":0}]
[3,{"$f":"INDEX(Configuración!$A$3:'Configuración'!$B$52,A7,2)","v":"Acido Acético (en litros)"},0,null,null,null,null,null,null,null,null,{"$f":"Enero!C7","v":0}]
[4,{"$f":"INDEX(Configuración!$A$3:'Configuración'!$B$52,A8,2)","v":"Acido Clorhídrico (en litros)"},0,null,null,null,null,null,null,null,null,{"$f":"Enero!C8","v":0}]
[5,{"$f":"INDEX(Configuración!$A$3:'Configuración'!$B$52,A9,2)","v":"Acido Fórmico, sales y sus derivados (en litros)"},0,null,null,null,null,null,null,null,null,{"$f":"Enero!C9","v":0}]
[6,{"$f":"INDEX(Configuración!$A$3:'Configuración'!$B$52,A10,2)","v":"Acido Sulfúrico (en litros)"},0,null,null,null,null,null,null,null,null,{"$f":"Enero!C10","v":0}]
[7,{"$f":"INDEX(Configuración!$A$3:'Configuración'!$B$52,A11,2)","v":"Alcohol Etílico (en litros)"},0,null,null,null,null,null,null,null,null,{"$f":"Enero!C11","v":0}]
[8,{"$f":"INDEX(Configuración!$A$3:'Configuración'!$B$52,A12,2)","v":"Alcohol Isobutílico (en litros)"},0,null,null,null,null,null,null,null,null,{"$f":"Enero!C12","v":0}]
[9,{"$f":"INDEX(Configuración!$A$3:'Configuración'!$B$52,A13,2)","v":"Alcohol Isopropílico (en litros)"},0,null,null,null,null,null,null,null,null,{"$f":"Enero!C13","v":0}]
[10,{"$f":"INDEX(Configuración!$A$3:'Configuración'!$B$52,A14,2)","v":"Alcohol Metílico (en litros)"},0,null,null,null,null,null,null,null,null,{"$f":"Enero!C14","v":0}]
[11,{"$f":"INDEX(Configuración!$A$3:'Configuración'!$B$52,A15,2)","v":"Amoníaco Anhídro o en disolución acuosa (en litros)"},0,null,null,null,null,null,null,null,null,{"$f":"Enero!C15","v":0}]
[12,{"$f":"INDEX(Configuración!$A$3:'Configuración'!$B$52,A16,2)","v":"Anhídrido Acético (en litros)"},0,null,null,null,null,null,null,null,null,{"$f":"Enero!C16","v":0}]
[13,{"$f":"INDEX(Configuración!$A$3:'Configuración'!$B$52,A17,2)","v":"Benceno (en litros)"},0,null,null,null,null,null,null,null,null,{"$f":"Enero!C17","v":0}]
[14,{"$f":"INDEX(Configuración!$A$3:'Configuración'!$B$52,A18,2)","v":"Bicarbonato de Sodio (en kilogramos)"},0,null,null,null,null,null,null,null,null,{"$f":"Enero!C18","v":0}]
[15,{"$f":"INDEX(Configuración!$A$3:'Configuración'!$B$52,A19,2)","v":"Carbonato de Potasio (en kilogramos)"},0,null,null,null,null,null,null,null,null,{"$f":"Enero!C19","v":0}]
[16,{"$f":"INDEX(Configuración!$A$3:'Configuración'!$B$52,A20,2)","v":"Carbonato de Sodio (en kilogramos)"},0,null,null,null,null,null,null,null,null,{"$f":"Enero!C20","v":0}]
[17,{"$f":"INDEX(Configuración!$A$3:'Configuración'!$B$52,A21,2)","v":"Cianuro de Potasio (en kilogramos)"},0,null,null,null,null,null,null,null,null,{"$f":"Enero!C21","v":0}]
[18,{"$f":"INDEX(Configuración!$A$3:'Configuración'!$B$52,A22,2)","v":"Cianuro de Sodio (en kilogramos)"},0,null,null,null,null,null,null,null,null,{"$f":"Enero!C22","v":0}]
[19,{"$f":"INDEX(Configuración!$A$3:'Configuración'!$B$52,A23,2)","v":"Cloroformo (en litros)"},0,null,null,null,null,null,null,null,null,{"$f":"Enero!C23","v":0}]
[20,{"$f":"INDEX(Configuración!$A$3:'Configuración'!$B$52,A24,2)","v":"Cloruro de Amonio (en kilogramos)"},0,null,null,null,null,null,null,null,null,{"$f":"Enero!C24","v":0}]
[21,{"$f":"INDEX(Configuración!$A$3:'Configuración'!$B$52,A25,2)","v":"Cloruro de Metileno (en litros)"},0,null,null,null,null,null,null,null,null,{"$f":"Enero!C25","v":0}]
[22,{"$f":"INDEX(Configuración!$A$3:'Configuración'!$B$52,A26,2)","v":"Dietilamina (en litros)"},0,null,null,null,null,null,null,null,null,{"$f":"Enero!C26","v":0}]
[23,{"$f":"INDEX(Configuración!$A$3:'Configuración'!$B$52,A27,2)","v":"Eter Etílico (en litros)"},0,null,null,null,null,null,null,null,null,{"$f":"Enero!C27","v":0}]
[24,{"$f":"INDEX(Configuración!$A$3:'Configuración'!$B$52,A28,2)","v":"Hexano (en litros)"},0,null,null,null,null,null,null,null,null,{"$f":"Enero!C28","v":0}]
[25,{"$f":"INDEX(Configuración!$A$3:'Configuración'!$B$52,A29,2)","v":"Hidróxido de Potasio (en kilogramos)"},0,null,null,null,null,null,null,null,null,{"$f":"Enero!C29","v":0}]
[26,{"$f":"INDEX(Configuración!$A$3:'Configuración'!$B$52,A30,2)","v":"Hidróxido de Sodio (en kilogramos)"},0,null,null,null,null,null,null,null,null,{"$f":"Enero!C30","v":0}]
[27,{"$f":"INDEX(Configuración!$A$3:'Configuración'!$B$52,A31,2)","v":"Oxido de Calcio (en kilogramos)"},0,null,null,null,null,null,null,null,null,{"$f":"Enero!C31","v":0}]
[28,{"$f":"INDEX(Configuración!$A$3:'Configuración'!$B$52,A32,2)","v":"Permanganato de Potasio (en kilogramos)"},0,null,null,null,null,null,null,null,null,{"$f":"Enero!C32","v":0}]
[29,{"$f":"INDEX(Configuración!$A$3:'Configuración'!$B$52,A33,2)","v":"Piperidina (en litros)"},0,null,null,null,null,null,null,null,null,{"$f":"Enero!C33","v":0}]
[30,{"$f":"INDEX(Configuración!$A$3:'Configuración'!$B$52,A34,2)","v":"Sulfato de Sodio (en kilogramos)"},0,null,null,null,null,null,null,null,null,{"$f":"Enero!C34","v":0}]
[31,{"$f":"INDEX(Configuración!$A$3:'Configuración'!$B$52,A35,2)","v":"Tolueno (en litros)"},0,null,null,null,null,null,null,null,null,{"$f":"Enero!C35","v":0}]
[32,{"$f":"INDEX(Configuración!$A$3:'Configuración'!$B$52,A36,2)","v":"Xilenos (en litros)"},0,null,null,null,null,null,null,null,null,{"$f":"Enero!C36","v":0}]
[33,{"$f":"INDEX(Configuración!$A$3:'Configuración'!$B$52,A37,2)","v":"Yodo (en litros)"},0,null,null,null,null,null,null,null,null,{"$f":"Enero!C37","v":0}]
[34,{"$f":"INDEX(Configuración!$A$3:'Configuración'!$B$52,A38,2)","v":"-"},0,null,null,null,null,null,null,null,null,{"$f":"Enero!C38","v":0}]
[35,{"$f":"INDEX(Configuración!$A$3:'Configuración'!$B$52,A39,2)","v":"-"},0,null,null,null,null,null,null,null,null,{"$f":"Enero!C39","v":0}]
[36,{"$f":"INDEX(Configuración!$A$3:'Configuración'!$B$52,A40,2)","v":"-"},0,null,null,null,null,null,null,null,null,{"$f":"Enero!C40","v":0}]
[37,{"$f":"INDEX(Configuración!$A$3:'Configuración'!$B$52,A41,2)","v":"-"},0,null,null,null,null,null,null,null,null,{"$f":"Enero!C41","v":0}]
[38,{"$f":"INDEX(Configuración!$A$3:'Configuración'!$B$52,A42,2)","v":"-"},0,null,null,null,null,null,null,null,null,{"$f":"Enero!C42","v":0}]
[39,{"$f":"INDEX(Configuración!$A$3:'Configuración'!$B$52,A43,2)","v":"-"},0,null,null,null,null,null,null,null,null,{"$f":"Enero!C43","v":0}]
[40,{"$f":"INDEX(Configuración!$A$3:'Configuración'!$B$52,A44,2)","v":"-"},0,null,null,null,null,null,null,null,null,{"$f":"Enero!C44","v":0}]
[41,{"$f":"INDEX(Configuración!$A$3:'Configuración'!$B$52,A45,2)","v":"-"},0,null,null,null,null,null,null,null,null,{"$f":"Enero!C45","v":0}]
[42,{"$f":"INDEX(Configuración!$A$3:'Configuración'!$B$52,A46,2)","v":"-"},0,null,null,null,null,null,null,null,null,{"$f":"Enero!C46","v":0}]
[43,{"$f":"INDEX(Configuración!$A$3:'Configuración'!$B$52,A47,2)","v":"-"},0,null,null,null,null,null,null,null,null,{"$f":"Enero!C47","v":0}]
[44,{"$f":"INDEX(Configuración!$A$3:'Configuración'!$B$52,A48,2)","v":"-"},0,null,null,null,null,null,null,null,null,{"$f":"Enero!C48","v":0}]
[45,{"$f":"INDEX(Configuración!$A$3:'Configuración'!$B$52,A49,2)","v":"-"},0,null,null,null,null,null,null,null,null,{"$f":"Enero!C49","v":0}]
[46,{"$f":"INDEX(Configuración!$A$3:'Configuración'!$B$52,A50,2)","v":"-"},0,null,null,null,null,null,null,null,null,{"$f":"Enero!C50","v":0}]
[47,{"$f":"INDEX(Configuración!$A$3:'Configuración'!$B$52,A51,2)","v":"-"},0,null,null,null,null,null,null,null,null,{"$f":"Enero!C51","v":0}]
[48,{"$f":"INDEX(Configuración!$A$3:'Configuración'!$B$52,A52,2)","v":"-"},0,null,null,null,null,null,null,null,null,{"$f":"Enero!C52","v":0}]
[49,{"$f":"INDEX(Configuración!$A$3:'Configuración'!$B$52,A53,2)","v":"-"},0,null,null,null,null,null,null,null,null,{"$f":"Enero!C53","v":0}]
[50,{"$f":"INDEX(Configuración!$A$3:'Configuración'!$B$52,A54,2)","v":"-"},0,null,null,null,null,null,null,null,null,{"$f":"Enero!C54","v":0}]

{"sheet":"Marzo","index":2,"n_rows":54,"n_cols":12,"rows_kept":54,"cut":false,"hidden":false,"merged":[]}
[null,"INFORME RNPQ MES","MARZO",{"$f":"Configuración!E2","v":2018},"SECCION",{"$f":"Configuración!G2","v":"TOXICO"}]
[]
[null,null,"STOCK","INGRESO 1","INGRESO 1","INGRESO 1","INGRESO 2","INGRESO 2","INGRESO 2","MERMA",null,"STOCK"]
["N°","SUSTANCIA CONTROLADA","ACTUAL","FECHA","CANTIDAD","REMITO","FECHA","CANTIDAD","REMITO","MENSUAL","OBSERVACIONES","ANTERIOR"]
[1,{"$f":"INDEX(Configuración!$A$3:'Configuración'!$B$52,A5,2)","v":"Acetato Etílico (en litros)"},{"$f":"$L5+$E5+$H5-$J5","v":0},null,null,null,null,null,null,null,null,{"$f":"Febrero!C5","v":0}]
[2,{"$f":"INDEX(Configuración!$A$3:'Configuración'!$B$52,A6,2)","v":"Acetona (en litros)"},{"$f":"$L6+$E6+$H6-$J6","v":0},null,null,null,null,null,null,null,null,{"$f":"Febrero!C6","v":0}]
[3,{"$f":"INDEX(Configuración!$A$3:'Configuración'!$B$52,A7,2)","v":"Acido Acético (en litros)"},0,null,null,null,null,null,null,null,null,{"$f":"Febrero!C7","v":0}]
[4,{"$f":"INDEX(Configuración!$A$3:'Configuración'!$B$52,A8,2)","v":"Acido Clorhídrico (en litros)"},0,null,null,null,null,null,null,null,null,{"$f":"Febrero!C8","v":0}]
[5,{"$f":"INDEX(Configuración!$A$3:'Configuración'!$B$52,A9,2)","v":"Acido Fórmico, sales y sus derivados (en litros)"},0,null,null,null,null,null,null,null,null,{"$f":"Febrero!C9","v":0}]
[6,{"$f":"INDEX(Configuración!$A$3:'Configuración'!$B$52,A10,2)","v":"Acido Sulfúrico (en litros)"},0,null,null,null,null,null,null,null,null,{"$f":"Febrero!C10","v":0}]
[7,{"$f":"INDEX(Configuración!$A$3:'Configuración'!$B$52,A11,2)","v":"Alcohol Etílico (en litros)"},0,null,null,null,null,null,null,null,null,{"$f":"Febrero!C11","v":0}]
[8,{"$f":"INDEX(Configuración!$A$3:'Configuración'!$B$52,A12,2)","v":"Alcohol Isobutílico (en litros)"},0,null,null,null,null,null,null,null,null,{"$f":"Febrero!C12","v":0}]
[9,{"$f":"INDEX(Configuración!$A$3:'Configuración'!$B$52,A13,2)","v":"Alcohol Isopropílico (en litros)"},0,null,null,null,null,null,null,null,null,{"$f":"Febrero!C13","v":0}]
[10,{"$f":"INDEX(Configuración!$A$3:'Configuración'!$B$52,A14,2)","v":"Alcohol Metílico (en litros)"},0,null,null,null,null,null,null,null,null,{"$f":"Febrero!C14","v":0}]
[11,{"$f":"INDEX(Configuración!$A$3:'Configuración'!$B$52,A15,2)","v":"Amoníaco Anhídro o en disolución acuosa (en litros)"},0,null,null,null,null,null,null,null,null,{"$f":"Febrero!C15","v":0}]
[12,{"$f":"INDEX(Configuración!$A$3:'Configuración'!$B$52,A16,2)","v":"Anhídrido Acético (en litros)"},0,null,null,null,null,null,null,null,null,{"$f":"Febrero!C16","v":0}]
[13,{"$f":"INDEX(Configuración!$A$3:'Configuración'!$B$52,A17,2)","v":"Benceno (en litros)"},0,null,null,null,null,null,null,null,null,{"$f":"Febrero!C17","v":0}]
[14,{"$f":"INDEX(Configuración!$A$3:'Configuración'!$B$52,A18,2)","v":"Bicarbonato de Sodio (en kilogramos)"},0,null,null,null,null,null,null,null,null,{"$f":"Febrero!C18","v":0}]
[15,{"$f":"INDEX(Configuración!$A$3:'Configuración'!$B$52,A19,2)","v":"Carbonato de Potasio (en kilogramos)"},0,null,null,null,null,null,null,null,null,{"$f":"Febrero!C19","v":0}]
[16,{"$f":"INDEX(Configuración!$A$3:'Configuración'!$B$52,A20,2)","v":"Carbonato de Sodio (en kilogramos)"},0,null,null,null,null,null,null,null,null,{"$f":"Febrero!C20","v":0}]
[17,{"$f":"INDEX(Configuración!$A$3:'Configuración'!$B$52,A21,2)","v":"Cianuro de Potasio (en kilogramos)"},0,null,null,null,null,null,null,null,null,{"$f":"Febrero!C21","v":0}]
[18,{"$f":"INDEX(Configuración!$A$3:'Configuración'!$B$52,A22,2)","v":"Cianuro de Sodio (en kilogramos)"},0,null,null,null,null,null,null,null,null,{"$f":"Febrero!C22","v":0}]
[19,{"$f":"INDEX(Configuración!$A$3:'Configuración'!$B$52,A23,2)","v":"Cloroformo (en litros)"},0,null,null,null,null,null,null,null,null,{"$f":"Febrero!C23","v":0}]
[20,{"$f":"INDEX(Configuración!$A$3:'Configuración'!$B$52,A24,2)","v":"Cloruro de Amonio (en kilogramos)"},0,null,null,null,null,null,null,null,null,{"$f":"Febrero!C24","v":0}]
[21,{"$f":"INDEX(Configuración!$A$3:'Configuración'!$B$52,A25,2)","v":"Cloruro de Metileno (en litros)"},0,null,null,null,null,null,null,null,null,{"$f":"Febrero!C25","v":0}]
[22,{"$f":"INDEX(Configuración!$A$3:'Configuración'!$B$52,A26,2)","v":"Dietilamina (en litros)"},0,null,null,null,null,null,null,null,null,{"$f":"Febrero!C26","v":0}]
[23,{"$f":"INDEX(Configuración!$A$3:'Configuración'!$B$52,A27,2)","v":"Eter Etílico (en litros)"},0,null,null,null,null,null,null,null,null,{"$f":"Febrero!C27","v":0}]
[24,{"$f":"INDEX(Configuración!$A$3:'Configuración'!$B$52,A28,2)","v":"Hexano (en litros)"},0,null,null,null,null,null,null,null,null,{"$f":"Febrero!C28","v":0}]
[25,{"$f":"INDEX(Configuración!$A$3:'Configuración'!$B$52,A29,2)","v":"Hidróxido de Potasio (en kilogramos)"},0,null,null,null,null,null,null,null,null,{"$f":"Febrero!C29","v":0}]
[26,{"$f":"INDEX(Configuración!$A$3:'Configuración'!$B$52,A30,2)","v":"Hidróxido de Sodio (en kilogramos)"},0,null,null,null,null,null,null,null,null,{"$f":"Febrero!C30","v":0}]
[27,{"$f":"INDEX(Configuración!$A$3:'Configuración'!$B$52,A31,2)","v":"Oxido de Calcio (en kilogramos)"},0,null,null,null,null,null,null,null,null,{"$f":"Febrero!C31","v":0}]
[28,{"$f":"INDEX(Configuración!$A$3:'Configuración'!$B$52,A32,2)","v":"Permanganato de Potasio (en kilogramos)"},0,null,null,null,null,null,null,null,null,{"$f":"Febrero!C32","v":0}]
[29,{"$f":"INDEX(Configuración!$A$3:'Configuración'!$B$52,A33,2)","v":"Piperidina (en litros)"},0,null,null,null,null,null,null,null,null,{"$f":"Febrero!C33","v":0}]
[30,{"$f":"INDEX(Configuración!$A$3:'Configuración'!$B$52,A34,2)","v":"Sulfato de Sodio (en kilogramos)"},0,null,null,null,null,null,null,null,null,{"$f":"Febrero!C34","v":0}]
[31,{"$f":"INDEX(Configuración!$A$3:'Configuración'!$B$52,A35,2)","v":"Tolueno (en litros)"},0,null,null,null,null,null,null,null,null,{"$f":"Febrero!C35","v":0}]
[32,{"$f":"INDEX(Configuración!$A$3:'Configuración'!$B$52,A36,2)","v":"Xilenos (en litros)"},0,null,null,null,null,null,null,null,null,{"$f":"Febrero!C36","v":0}]
[33,{"$f":"INDEX(Configuración!$A$3:'Configuración'!$B$52,A37,2)","v":"Yodo (en litros)"},0,null,null,null,null,null,null,null,null,{"$f":"Febrero!C37","v":0}]
[34,{"$f":"INDEX(Configuración!$A$3:'Configuración'!$B$52,A38,2)","v":"-"},0,null,null,null,null,null,null,null,null,{"$f":"Febrero!C38","v":0}]
[35,{"$f":"INDEX(Configuración!$A$3:'Configuración'!$B$52,A39,2)","v":"-"},0,null,null,null,null,null,null,null,null,{"$f":"Febrero!C39","v":0}]
[36,{"$f":"INDEX(Configuración!$A$3:'Configuración'!$B$52,A40,2)","v":"-"},0,null,null,null,null,null,null,null,null,{"$f":"Febrero!C40","v":0}]
[37,{"$f":"INDEX(Configuración!$A$3:'Configuración'!$B$52,A41,2)","v":"-"},0,null,null,null,null,null,null,null,null,{"$f":"Febrero!C41","v":0}]
[38,{"$f":"INDEX(Configuración!$A$3:'Configuración'!$B$52,A42,2)","v":"-"},0,null,null,null,null,null,null,null,null,{"$f":"Febrero!C42","v":0}]
[39,{"$f":"INDEX(Configuración!$A$3:'Configuración'!$B$52,A43,2)","v":"-"},0,null,null,null,null,null,null,null,null,{"$f":"Febrero!C43","v":0}]
[40,{"$f":"INDEX(Configuración!$A$3:'Configuración'!$B$52,A44,2)","v":"-"},0,null,null,null,null,null,null,null,null,{"$f":"Febrero!C44","v":0}]
[41,{"$f":"INDEX(Configuración!$A$3:'Configuración'!$B$52,A45,2)","v":"-"},0,null,null,null,null,null,null,null,null,{"$f":"Febrero!C45","v":0}]
[42,{"$f":"INDEX(Configuración!$A$3:'Configuración'!$B$52,A46,2)","v":"-"},0,null,null,null,null,null,null,null,null,{"$f":"Febrero!C46","v":0}]
[43,{"$f":"INDEX(Configuración!$A$3:'Configuración'!$B$52,A47,2)","v":"-"},0,null,null,null,null,null,null,null,null,{"$f":"Febrero!C47","v":0}]
[44,{"$f":"INDEX(Configuración!$A$3:'Configuración'!$B$52,A48,2)","v":"-"},0,null,null,null,null,null,null,null,null,{"$f":"Febrero!C48","v":0}]
[45,{"$f":"INDEX(Configuración!$A$3:'Configuración'!$B$52,A49,2)","v":"-"},0,null,null,null,null,null,null,null,null,{"$f":"Febrero!C49","v":0}]
[46,{"$f":"INDEX(Configuración!$A$3:'Configuración'!$B$52,A50,2)","v":"-"},0,null,null,null,null,null,null,null,null,{"$f":"Febrero!C50","v":0}]
[47,{"$f":"INDEX(Configuración!$A$3:'Configuración'!$B$52,A51,2)","v":"-"},0,null,null,null,null,null,null,null,null,{"$f":"Febrero!C51","v":0}]
[48,{"$f":"INDEX(Configuración!$A$3:'Configuración'!$B$52,A52,2)","v":"-"},0,null,null,null,null,null,null,null,null,{"$f":"Febrero!C52","v":0}]
[49,{"$f":"INDEX(Configuración!$A$3:'Configuración'!$B$52,A53,2)","v":"-"},0,null,null,null,null,null,null,null,null,{"$f":"Febrero!C53","v":0}]
[50,{"$f":"INDEX(Configuración!$A$3:'Configuración'!$B$52,A54,2)","v":"-"},0,null,null,null,null,null,null,null,null,{"$f":"Febrero!C54","v":0}]

{"sheet":"Abril","index":3,"n_rows":54,"n_cols":12,"rows_kept":54,"cut":false,"hidden":false,"merged":[]}
[null,"INFORME RENPRE MES","ABRIL",{"$f":"Configuración!E2","v":2018},"SECCION",{"$f":"Configuración!G2","v":"TOXICO"}]
[]
[null,null,"STOCK","INGRESO 1","INGRESO 1","INGRESO 1","INGRESO 2","INGRESO 2","INGRESO 2","MERMA",null,"STOCK"]
["N°","SUSTANCIA CONTROLADA","ACTUAL","FECHA","CANTIDAD","REMITO","FECHA","CANTIDAD","REMITO","MENSUAL","OBSERVACIONES","ANTERIOR"]
[1,{"$f":"INDEX(Configuración!$A$3:'Configuración'!$B$52,A5,2)","v":"Acetato Etílico (en litros)"},{"$f":"$L5+$E5+$H5-$J5","v":0},null,null,null,null,null,null,null,null,{"$f":"Marzo!C5","v":0}]
[2,{"$f":"INDEX(Configuración!$A$3:'Configuración'!$B$52,A6,2)","v":"Acetona (en litros)"},{"$f":"$L6+$E6+$H6-$J6","v":0},null,null,null,null,null,null,null,null,{"$f":"Marzo!C6","v":0}]
[3,{"$f":"INDEX(Configuración!$A$3:'Configuración'!$B$52,A7,2)","v":"Acido Acético (en litros)"},0,null,null,null,null,null,null,null,null,{"$f":"Marzo!C7","v":0}]
[4,{"$f":"INDEX(Configuración!$A$3:'Configuración'!$B$52,A8,2)","v":"Acido Clorhídrico (en litros)"},0,null,null,null,null,null,null,null,null,{"$f":"Marzo!C8","v":0}]
[5,{"$f":"INDEX(Configuración!$A$3:'Configuración'!$B$52,A9,2)","v":"Acido Fórmico, sales y sus derivados (en litros)"},0,null,null,null,null,null,null,null,null,{"$f":"Marzo!C9","v":0}]
[6,{"$f":"INDEX(Configuración!$A$3:'Configuración'!$B$52,A10,2)","v":"Acido Sulfúrico (en litros)"},0,null,null,null,null,null,null,null,null,{"$f":"Marzo!C10","v":0}]
[7,{"$f":"INDEX(Configuración!$A$3:'Configuración'!$B$52,A11,2)","v":"Alcohol Etílico (en litros)"},0,null,null,null,null,null,null,null,null,{"$f":"Marzo!C11","v":0}]
[8,{"$f":"INDEX(Configuración!$A$3:'Configuración'!$B$52,A12,2)","v":"Alcohol Isobutílico (en litros)"},0,null,null,null,null,null,null,null,null,{"$f":"Marzo!C12","v":0}]
[9,{"$f":"INDEX(Configuración!$A$3:'Configuración'!$B$52,A13,2)","v":"Alcohol Isopropílico (en litros)"},0,null,null,null,null,null,null,null,null,{"$f":"Marzo!C13","v":0}]
[10,{"$f":"INDEX(Configuración!$A$3:'Configuración'!$B$52,A14,2)","v":"Alcohol Metílico (en litros)"},0,null,null,null,null,null,null,null,null,{"$f":"Marzo!C14","v":0}]
[11,{"$f":"INDEX(Configuración!$A$3:'Configuración'!$B$52,A15,2)","v":"Amoníaco Anhídro o en disolución acuosa (en litros)"},0,null,null,null,null,null,null,null,null,{"$f":"Marzo!C15","v":0}]
[12,{"$f":"INDEX(Configuración!$A$3:'Configuración'!$B$52,A16,2)","v":"Anhídrido Acético (en litros)"},0,null,null,null,null,null,null,null,null,{"$f":"Marzo!C16","v":0}]
[13,{"$f":"INDEX(Configuración!$A$3:'Configuración'!$B$52,A17,2)","v":"Benceno (en litros)"},0,null,null,null,null,null,null,null,null,{"$f":"Marzo!C17","v":0}]
[14,{"$f":"INDEX(Configuración!$A$3:'Configuración'!$B$52,A18,2)","v":"Bicarbonato de Sodio (en kilogramos)"},0,null,null,null,null,null,null,null,null,{"$f":"Marzo!C18","v":0}]
[15,{"$f":"INDEX(Configuración!$A$3:'Configuración'!$B$52,A19,2)","v":"Carbonato de Potasio (en kilogramos)"},0,null,null,null,null,null,null,null,null,{"$f":"Marzo!C19","v":0}]
[16,{"$f":"INDEX(Configuración!$A$3:'Configuración'!$B$52,A20,2)","v":"Carbonato de Sodio (en kilogramos)"},0,null,null,null,null,null,null,null,null,{"$f":"Marzo!C20","v":0}]
[17,{"$f":"INDEX(Configuración!$A$3:'Configuración'!$B$52,A21,2)","v":"Cianuro de Potasio (en kilogramos)"},0,null,null,null,null,null,null,null,null,{"$f":"Marzo!C21","v":0}]
[18,{"$f":"INDEX(Configuración!$A$3:'Configuración'!$B$52,A22,2)","v":"Cianuro de Sodio (en kilogramos)"},0,null,null,null,null,null,null,null,null,{"$f":"Marzo!C22","v":0}]
[19,{"$f":"INDEX(Configuración!$A$3:'Configuración'!$B$52,A23,2)","v":"Cloroformo (en litros)"},0,null,null,null,null,null,null,null,null,{"$f":"Marzo!C23","v":0}]
[20,{"$f":"INDEX(Configuración!$A$3:'Configuración'!$B$52,A24,2)","v":"Cloruro de Amonio (en kilogramos)"},0,null,null,null,null,null,null,null,null,{"$f":"Marzo!C24","v":0}]
[21,{"$f":"INDEX(Configuración!$A$3:'Configuración'!$B$52,A25,2)","v":"Cloruro de Metileno (en litros)"},0,null,null,null,null,null,null,null,null,{"$f":"Marzo!C25","v":0}]
[22,{"$f":"INDEX(Configuración!$A$3:'Configuración'!$B$52,A26,2)","v":"Dietilamina (en litros)"},0,null,null,null,null,null,null,null,null,{"$f":"Marzo!C26","v":0}]
[23,{"$f":"INDEX(Configuración!$A$3:'Configuración'!$B$52,A27,2)","v":"Eter Etílico (en litros)"},0,null,null,null,null,null,null,null,null,{"$f":"Marzo!C27","v":0}]
[24,{"$f":"INDEX(Configuración!$A$3:'Configuración'!$B$52,A28,2)","v":"Hexano (en litros)"},0,null,null,null,null,null,null,null,null,{"$f":"Marzo!C28","v":0}]
[25,{"$f":"INDEX(Configuración!$A$3:'Configuración'!$B$52,A29,2)","v":"Hidróxido de Potasio (en kilogramos)"},0,null,null,null,null,null,null,null,null,{"$f":"Marzo!C29","v":0}]
[26,{"$f":"INDEX(Configuración!$A$3:'Configuración'!$B$52,A30,2)","v":"Hidróxido de Sodio (en kilogramos)"},0,null,null,null,null,null,null,null,null,{"$f":"Marzo!C30","v":0}]
[27,{"$f":"INDEX(Configuración!$A$3:'Configuración'!$B$52,A31,2)","v":"Oxido de Calcio (en kilogramos)"},0,null,null,null,null,null,null,null,null,{"$f":"Marzo!C31","v":0}]
[28,{"$f":"INDEX(Configuración!$A$3:'Configuración'!$B$52,A32,2)","v":"Permanganato de Potasio (en kilogramos)"},0,null,null,null,null,null,null,null,null,{"$f":"Marzo!C32","v":0}]
[29,{"$f":"INDEX(Configuración!$A$3:'Configuración'!$B$52,A33,2)","v":"Piperidina (en litros)"},0,null,null,null,null,null,null,null,null,{"$f":"Marzo!C33","v":0}]
[30,{"$f":"INDEX(Configuración!$A$3:'Configuración'!$B$52,A34,2)","v":"Sulfato de Sodio (en kilogramos)"},0,null,null,null,null,null,null,null,null,{"$f":"Marzo!C34","v":0}]
[31,{"$f":"INDEX(Configuración!$A$3:'Configuración'!$B$52,A35,2)","v":"Tolueno (en litros)"},0,null,null,null,null,null,null,null,null,{"$f":"Marzo!C35","v":0}]
[32,{"$f":"INDEX(Configuración!$A$3:'Configuración'!$B$52,A36,2)","v":"Xilenos (en litros)"},0,null,null,null,null,null,null,null,null,{"$f":"Marzo!C36","v":0}]
[33,{"$f":"INDEX(Configuración!$A$3:'Configuración'!$B$52,A37,2)","v":"Yodo (en litros)"},0,null,null,null,null,null,null,null,null,{"$f":"Marzo!C37","v":0}]
[34,{"$f":"INDEX(Configuración!$A$3:'Configuración'!$B$52,A38,2)","v":"-"},0,null,null,null,null,null,null,null,null,{"$f":"Marzo!C38","v":0}]
[35,{"$f":"INDEX(Configuración!$A$3:'Configuración'!$B$52,A39,2)","v":"-"},0,null,null,null,null,null,null,null,null,{"$f":"Marzo!C39","v":0}]
[36,{"$f":"INDEX(Configuración!$A$3:'Configuración'!$B$52,A40,2)","v":"-"},0,null,null,null,null,null,null,null,null,{"$f":"Marzo!C40","v":0}]
[37,{"$f":"INDEX(Configuración!$A$3:'Configuración'!$B$52,A41,2)","v":"-"},0,null,null,null,null,null,null,null,null,{"$f":"Marzo!C41","v":0}]
[38,{"$f":"INDEX(Configuración!$A$3:'Configuración'!$B$52,A42,2)","v":"-"},0,null,null,null,null,null,null,null,null,{"$f":"Marzo!C42","v":0}]
[39,{"$f":"INDEX(Configuración!$A$3:'Configuración'!$B$52,A43,2)","v":"-"},0,null,null,null,null,null,null,null,null,{"$f":"Marzo!C43","v":0}]
[40,{"$f":"INDEX(Configuración!$A$3:'Configuración'!$B$52,A44,2)","v":"-"},0,null,null,null,null,null,null,null,null,{"$f":"Marzo!C44","v":0}]
[41,{"$f":"INDEX(Configuración!$A$3:'Configuración'!$B$52,A45,2)","v":"-"},0,null,null,null,null,null,null,null,null,{"$f":"Marzo!C45","v":0}]
[42,{"$f":"INDEX(Configuración!$A$3:'Configuración'!$B$52,A46,2)","v":"-"},0,null,null,null,null,null,null,null,null,{"$f":"Marzo!C46","v":0}]
[43,{"$f":"INDEX(Configuración!$A$3:'Configuración'!$B$52,A47,2)","v":"-"},0,null,null,null,null,null,null,null,null,{"$f":"Marzo!C47","v":0}]
[44,{"$f":"INDEX(Configuración!$A$3:'Configuración'!$B$52,A48,2)","v":"-"},0,null,null,null,null,null,null,null,null,{"$f":"Marzo!C48","v":0}]
[45,{"$f":"INDEX(Configuración!$A$3:'Configuración'!$B$52,A49,2)","v":"-"},0,null,null,null,null,null,null,null,null,{"$f":"Marzo!C49","v":0}]
[46,{"$f":"INDEX(Configuración!$A$3:'Configuración'!$B$52,A50,2)","v":"-"},0,null,null,null,null,null,null,null,null,{"$f":"Marzo!C50","v":0}]
[47,{"$f":"INDEX(Configuración!$A$3:'Configuración'!$B$52,A51,2)","v":"-"},0,null,null,null,null,null,null,null,null,{"$f":"Marzo!C51","v":0}]
[48,{"$f":"INDEX(Configuración!$A$3:'Configuración'!$B$52,A52,2)","v":"-"},0,null,null,null,null,null,null,null,null,{"$f":"Marzo!C52","v":0}]
[49,{"$f":"INDEX(Configuración!$A$3:'Configuración'!$B$52,A53,2)","v":"-"},0,null,null,null,null,null,null,null,null,{"$f":"Marzo!C53","v":0}]
[50,{"$f":"INDEX(Configuración!$A$3:'Configuración'!$B$52,A54,2)","v":"-"},0,null,null,null,null,null,null,null,null,{"$f":"Marzo!C54","v":0}]

{"sheet":"Mayo","index":4,"n_rows":54,"n_cols":12,"rows_kept":54,"cut":false,"hidden":false,"merged":[]}
[null,"INFORME RENPRE MES","MAYO",{"$f":"Configuración!E2","v":2018},"SECCION",{"$f":"Configuración!G2","v":"TOXICO"}]
[]
[null,null,"STOCK","INGRESO 1","INGRESO 1","INGRESO 1","INGRESO 2","INGRESO 2","INGRESO 2","MERMA",null,"STOCK"]
["N°","SUSTANCIA CONTROLADA","ACTUAL","FECHA","CANTIDAD","REMITO","FECHA","CANTIDAD","REMITO","MENSUAL","OBSERVACIONES","ANTERIOR"]
[1,{"$f":"INDEX(Configuración!$A$3:'Configuración'!$B$52,A5,2)","v":"Acetato Etílico (en litros)"},{"$f":"$L5+$E5+$H5-$J5","v":0},null,null,null,null,null,null,null,null,{"$f":"Abril!C5","v":0}]
[2,{"$f":"INDEX(Configuración!$A$3:'Configuración'!$B$52,A6,2)","v":"Acetona (en litros)"},{"$f":"$L6+$E6+$H6-$J6","v":0},null,null,null,null,null,null,null,null,{"$f":"Abril!C6","v":0}]
[3,{"$f":"INDEX(Configuración!$A$3:'Configuración'!$B$52,A7,2)","v":"Acido Acético (en litros)"},0,null,null,null,null,null,null,null,null,{"$f":"Abril!C7","v":0}]
[4,{"$f":"INDEX(Configuración!$A$3:'Configuración'!$B$52,A8,2)","v":"Acido Clorhídrico (en litros)"},0,null,null,null,null,null,null,null,null,{"$f":"Abril!C8","v":0}]
[5,{"$f":"INDEX(Configuración!$A$3:'Configuración'!$B$52,A9,2)","v":"Acido Fórmico, sales y sus derivados (en litros)"},0,null,null,null,null,null,null,null,null,{"$f":"Abril!C9","v":0}]
[6,{"$f":"INDEX(Configuración!$A$3:'Configuración'!$B$52,A10,2)","v":"Acido Sulfúrico (en litros)"},0,null,null,null,null,null,null,null,null,{"$f":"Abril!C10","v":0}]
[7,{"$f":"INDEX(Configuración!$A$3:'Configuración'!$B$52,A11,2)","v":"Alcohol Etílico (en litros)"},0,null,null,null,null,null,null,null,null,{"$f":"Abril!C11","v":0}]
[8,{"$f":"INDEX(Configuración!$A$3:'Configuración'!$B$52,A12,2)","v":"Alcohol Isobutílico (en litros)"},0,null,null,null,null,null,null,null,null,{"$f":"Abril!C12","v":0}]
[9,{"$f":"INDEX(Configuración!$A$3:'Configuración'!$B$52,A13,2)","v":"Alcohol Isopropílico (en litros)"},0,null,null,null,null,null,null,null,null,{"$f":"Abril!C13","v":0}]
[10,{"$f":"INDEX(Configuración!$A$3:'Configuración'!$B$52,A14,2)","v":"Alcohol Metílico (en litros)"},0,null,null,null,null,null,null,null,null,{"$f":"Abril!C14","v":0}]
[11,{"$f":"INDEX(Configuración!$A$3:'Configuración'!$B$52,A15,2)","v":"Amoníaco Anhídro o en disolución acuosa (en litros)"},0,null,null,null,null,null,null,null,null,{"$f":"Abril!C15","v":0}]
[12,{"$f":"INDEX(Configuración!$A$3:'Configuración'!$B$52,A16,2)","v":"Anhídrido Acético (en litros)"},0,null,null,null,null,null,null,null,null,{"$f":"Abril!C16","v":0}]
[13,{"$f":"INDEX(Configuración!$A$3:'Configuración'!$B$52,A17,2)","v":"Benceno (en litros)"},0,null,null,null,null,null,null,null,null,{"$f":"Abril!C17","v":0}]
[14,{"$f":"INDEX(Configuración!$A$3:'Configuración'!$B$52,A18,2)","v":"Bicarbonato de Sodio (en kilogramos)"},0,null,null,null,null,null,null,null,null,{"$f":"Abril!C18","v":0}]
[15,{"$f":"INDEX(Configuración!$A$3:'Configuración'!$B$52,A19,2)","v":"Carbonato de Potasio (en kilogramos)"},0,null,null,null,null,null,null,null,null,{"$f":"Abril!C19","v":0}]
[16,{"$f":"INDEX(Configuración!$A$3:'Configuración'!$B$52,A20,2)","v":"Carbonato de Sodio (en kilogramos)"},0,null,null,null,null,null,null,null,null,{"$f":"Abril!C20","v":0}]
[17,{"$f":"INDEX(Configuración!$A$3:'Configuración'!$B$52,A21,2)","v":"Cianuro de Potasio (en kilogramos)"},0,null,null,null,null,null,null,null,null,{"$f":"Abril!C21","v":0}]
[18,{"$f":"INDEX(Configuración!$A$3:'Configuración'!$B$52,A22,2)","v":"Cianuro de Sodio (en kilogramos)"},0,null,null,null,null,null,null,null,null,{"$f":"Abril!C22","v":0}]
[19,{"$f":"INDEX(Configuración!$A$3:'Configuración'!$B$52,A23,2)","v":"Cloroformo (en litros)"},0,null,null,null,null,null,null,null,null,{"$f":"Abril!C23","v":0}]
[20,{"$f":"INDEX(Configuración!$A$3:'Configuración'!$B$52,A24,2)","v":"Cloruro de Amonio (en kilogramos)"},0,null,null,null,null,null,null,null,null,{"$f":"Abril!C24","v":0}]
[21,{"$f":"INDEX(Configuración!$A$3:'Configuración'!$B$52,A25,2)","v":"Cloruro de Metileno (en litros)"},0,null,null,null,null,null,null,null,null,{"$f":"Abril!C25","v":0}]
[22,{"$f":"INDEX(Configuración!$A$3:'Configuración'!$B$52,A26,2)","v":"Dietilamina (en litros)"},0,null,null,null,null,null,null,null,null,{"$f":"Abril!C26","v":0}]
[23,{"$f":"INDEX(Configuración!$A$3:'Configuración'!$B$52,A27,2)","v":"Eter Etílico (en litros)"},0,null,null,null,null,null,null,null,null,{"$f":"Abril!C27","v":0}]
[24,{"$f":"INDEX(Configuración!$A$3:'Configuración'!$B$52,A28,2)","v":"Hexano (en litros)"},0,null,null,null,null,null,null,null,null,{"$f":"Abril!C28","v":0}]
[25,{"$f":"INDEX(Configuración!$A$3:'Configuración'!$B$52,A29,2)","v":"Hidróxido de Potasio (en kilogramos)"},0,null,null,null,null,null,null,null,null,{"$f":"Abril!C29","v":0}]
[26,{"$f":"INDEX(Configuración!$A$3:'Configuración'!$B$52,A30,2)","v":"Hidróxido de Sodio (en kilogramos)"},0,null,null,null,null,null,null,null,null,{"$f":"Abril!C30","v":0}]
[27,{"$f":"INDEX(Configuración!$A$3:'Configuración'!$B$52,A31,2)","v":"Oxido de Calcio (en kilogramos)"},0,null,null,null,null,null,null,null,null,{"$f":"Abril!C31","v":0}]
[28,{"$f":"INDEX(Configuración!$A$3:'Configuración'!$B$52,A32,2)","v":"Permanganato de Potasio (en kilogramos)"},0,null,null,null,null,null,null,null,null,{"$f":"Abril!C32","v":0}]
[29,{"$f":"INDEX(Configuración!$A$3:'Configuración'!$B$52,A33,2)","v":"Piperidina (en litros)"},0,null,null,null,null,null,null,null,null,{"$f":"Abril!C33","v":0}]
[30,{"$f":"INDEX(Configuración!$A$3:'Configuración'!$B$52,A34,2)","v":"Sulfato de Sodio (en kilogramos)"},0,null,null,null,null,null,null,null,null,{"$f":"Abril!C34","v":0}]
[31,{"$f":"INDEX(Configuración!$A$3:'Configuración'!$B$52,A35,2)","v":"Tolueno (en litros)"},0,null,null,null,null,null,null,null,null,{"$f":"Abril!C35","v":0}]
[32,{"$f":"INDEX(Configuración!$A$3:'Configuración'!$B$52,A36,2)","v":"Xilenos (en litros)"},0,null,null,null,null,null,null,null,null,{"$f":"Abril!C36","v":0}]
[33,{"$f":"INDEX(Configuración!$A$3:'Configuración'!$B$52,A37,2)","v":"Yodo (en litros)"},0,null,null,null,null,null,null,null,null,{"$f":"Abril!C37","v":0}]
[34,{"$f":"INDEX(Configuración!$A$3:'Configuración'!$B$52,A38,2)","v":"-"},0,null,null,null,null,null,null,null,null,{"$f":"Abril!C38","v":0}]
[35,{"$f":"INDEX(Configuración!$A$3:'Configuración'!$B$52,A39,2)","v":"-"},0,null,null,null,null,null,null,null,null,{"$f":"Abril!C39","v":0}]
[36,{"$f":"INDEX(Configuración!$A$3:'Configuración'!$B$52,A40,2)","v":"-"},0,null,null,null,null,null,null,null,null,{"$f":"Abril!C40","v":0}]
[37,{"$f":"INDEX(Configuración!$A$3:'Configuración'!$B$52,A41,2)","v":"-"},0,null,null,null,null,null,null,null,null,{"$f":"Abril!C41","v":0}]
[38,{"$f":"INDEX(Configuración!$A$3:'Configuración'!$B$52,A42,2)","v":"-"},0,null,null,null,null,null,null,null,null,{"$f":"Abril!C42","v":0}]
[39,{"$f":"INDEX(Configuración!$A$3:'Configuración'!$B$52,A43,2)","v":"-"},0,null,null,null,null,null,null,null,null,{"$f":"Abril!C43","v":0}]
[40,{"$f":"INDEX(Configuración!$A$3:'Configuración'!$B$52,A44,2)","v":"-"},0,null,null,null,null,null,null,null,null,{"$f":"Abril!C44","v":0}]
[41,{"$f":"INDEX(Configuración!$A$3:'Configuración'!$B$52,A45,2)","v":"-"},0,null,null,null,null,null,null,null,null,{"$f":"Abril!C45","v":0}]
[42,{"$f":"INDEX(Configuración!$A$3:'Configuración'!$B$52,A46,2)","v":"-"},0,null,null,null,null,null,null,null,null,{"$f":"Abril!C46","v":0}]
[43,{"$f":"INDEX(Configuración!$A$3:'Configuración'!$B$52,A47,2)","v":"-"},0,null,null,null,null,null,null,null,null,{"$f":"Abril!C47","v":0}]
[44,{"$f":"INDEX(Configuración!$A$3:'Configuración'!$B$52,A48,2)","v":"-"},0,null,null,null,null,null,null,null,null,{"$f":"Abril!C48","v":0}]
[45,{"$f":"INDEX(Configuración!$A$3:'Configuración'!$B$52,A49,2)","v":"-"},0,null,null,null,null,null,null,null,null,{"$f":"Abril!C49","v":0}]
[46,{"$f":"INDEX(Configuración!$A$3:'Configuración'!$B$52,A50,2)","v":"-"},0,null,null,null,null,null,null,null,null,{"$f":"Abril!C50","v":0}]
[47,{"$f":"INDEX(Configuración!$A$3:'Configuración'!$B$52,A51,2)","v":"-"},0,null,null,null,null,null,null,null,null,{"$f":"Abril!C51","v":0}]
[48,{"$f":"INDEX(Configuración!$A$3:'Configuración'!$B$52,A52,2)","v":"-"},0,null,null,null,null,null,null,null,null,{"$f":"Abril!C52","v":0}]
[49,{"$f":"INDEX(Configuración!$A$3:'Configuración'!$B$52,A53,2)","v":"-"},0,null,null,null,null,null,null,null,null,{"$f":"Abril!C53","v":0}]
[50,{"$f":"INDEX(Configuración!$A$3:'Configuración'!$B$52,A54,2)","v":"-"},0,null,null,null,null,null,null,null,null,{"$f":"Abril!C54","v":0}]

{"sheet":"Junio","index":5,"n_rows":54,"n_cols":12,"rows_kept":54,"cut":false,"hidden":false,"merged":[]}
[null,"INFORME RENPRE MES","JUNIO",{"$f":"Configuración!E2","v":2018},"SECCION",{"$f":"Configuración!G2","v":"TOXICO"}]
[]
[null,null,"STOCK","INGRESO 1","INGRESO 1","INGRESO 1","INGRESO 2","INGRESO 2","INGRESO 2","MERMA",null,"STOCK"]
["N°","SUSTANCIA CONTROLADA","ACTUAL","FECHA","CANTIDAD","REMITO","FECHA","CANTIDAD","REMITO","MENSUAL","OBSERVACIONES","ANTERIOR"]
[1,{"$f":"INDEX(Configuración!$A$3:'Configuración'!$B$52,A5,2)","v":"Acetato Etílico (en litros)"},{"$f":"$L5+$E5+$H5-$J5","v":0},null,null,null,null,null,null,null,null,{"$f":"Mayo!C5","v":0}]
[2,{"$f":"INDEX(Configuración!$A$3:'Configuración'!$B$52,A6,2)","v":"Acetona (en litros)"},{"$f":"$L6+$E6+$H6-$J6","v":0},null,null,null,null,null,null,null,null,{"$f":"Mayo!C6","v":0}]
[3,{"$f":"INDEX(Configuración!$A$3:'Configuración'!$B$52,A7,2)","v":"Acido Acético (en litros)"},0,null,null,null,null,null,null,null,null,{"$f":"Mayo!C7","v":0}]
[4,{"$f":"INDEX(Configuración!$A$3:'Configuración'!$B$52,A8,2)","v":"Acido Clorhídrico (en litros)"},0,null,null,null,null,null,null,null,null,{"$f":"Mayo!C8","v":0}]
[5,{"$f":"INDEX(Configuración!$A$3:'Configuración'!$B$52,A9,2)","v":"Acido Fórmico, sales y sus derivados (en litros)"},0,null,null,null,null,null,null,null,null,{"$f":"Mayo!C9","v":0}]
[6,{"$f":"INDEX(Configuración!$A$3:'Configuración'!$B$52,A10,2)","v":"Acido Sulfúrico (en litros)"},0,null,null,null,null,null,null,null,null,{"$f":"Mayo!C10","v":0}]
[7,{"$f":"INDEX(Configuración!$A$3:'Configuración'!$B$52,A11,2)","v":"Alcohol Etílico (en litros)"},0,null,null,null,null,null,null,null,null,{"$f":"Mayo!C11","v":0}]
[8,{"$f":"INDEX(Configuración!$A$3:'Configuración'!$B$52,A12,2)","v":"Alcohol Isobutílico (en litros)"},0,null,null,null,null,null,null,null,null,{"$f":"Mayo!C12","v":0}]
[9,{"$f":"INDEX(Configuración!$A$3:'Configuración'!$B$52,A13,2)","v":"Alcohol Isopropílico (en litros)"},0,null,null,null,null,null,null,null,null,{"$f":"Mayo!C13","v":0}]
[10,{"$f":"INDEX(Configuración!$A$3:'Configuración'!$B$52,A14,2)","v":"Alcohol Metílico (en litros)"},0,null,null,null,null,null,null,null,null,{"$f":"Mayo!C14","v":0}]
[11,{"$f":"INDEX(Configuración!$A$3:'Configuración'!$B$52,A15,2)","v":"Amoníaco Anhídro o en disolución acuosa (en litros)"},0,null,null,null,null,null,null,null,null,{"$f":"Mayo!C15","v":0}]
[12,{"$f":"INDEX(Configuración!$A$3:'Configuración'!$B$52,A16,2)","v":"Anhídrido Acético (en litros)"},0,null,null,null,null,null,null,null,null,{"$f":"Mayo!C16","v":0}]
[13,{"$f":"INDEX(Configuración!$A$3:'Configuración'!$B$52,A17,2)","v":"Benceno (en litros)"},0,null,null,null,null,null,null,null,null,{"$f":"Mayo!C17","v":0}]
[14,{"$f":"INDEX(Configuración!$A$3:'Configuración'!$B$52,A18,2)","v":"Bicarbonato de Sodio (en kilogramos)"},0,null,null,null,null,null,null,null,null,{"$f":"Mayo!C18","v":0}]
[15,{"$f":"INDEX(Configuración!$A$3:'Configuración'!$B$52,A19,2)","v":"Carbonato de Potasio (en kilogramos)"},0,null,null,null,null,null,null,null,null,{"$f":"Mayo!C19","v":0}]
[16,{"$f":"INDEX(Configuración!$A$3:'Configuración'!$B$52,A20,2)","v":"Carbonato de Sodio (en kilogramos)"},0,null,null,null,null,null,null,null,null,{"$f":"Mayo!C20","v":0}]
[17,{"$f":"INDEX(Configuración!$A$3:'Configuración'!$B$52,A21,2)","v":"Cianuro de Potasio (en kilogramos)"},0,null,null,null,null,null,null,null,null,{"$f":"Mayo!C21","v":0}]
[18,{"$f":"INDEX(Configuración!$A$3:'Configuración'!$B$52,A22,2)","v":"Cianuro de Sodio (en kilogramos)"},0,null,null,null,null,null,null,null,null,{"$f":"Mayo!C22","v":0}]
[19,{"$f":"INDEX(Configuración!$A$3:'Configuración'!$B$52,A23,2)","v":"Cloroformo (en litros)"},0,null,null,null,null,null,null,null,null,{"$f":"Mayo!C23","v":0}]
[20,{"$f":"INDEX(Configuración!$A$3:'Configuración'!$B$52,A24,2)","v":"Cloruro de Amonio (en kilogramos)"},0,null,null,null,null,null,null,null,null,{"$f":"Mayo!C24","v":0}]
[21,{"$f":"INDEX(Configuración!$A$3:'Configuración'!$B$52,A25,2)","v":"Cloruro de Metileno (en litros)"},0,null,null,null,null,null,null,null,null,{"$f":"Mayo!C25","v":0}]
[22,{"$f":"INDEX(Configuración!$A$3:'Configuración'!$B$52,A26,2)","v":"Dietilamina (en litros)"},0,null,null,null,null,null,null,null,null,{"$f":"Mayo!C26","v":0}]
[23,{"$f":"INDEX(Configuración!$A$3:'Configuración'!$B$52,A27,2)","v":"Eter Etílico (en litros)"},0,null,null,null,null,null,null,null,null,{"$f":"Mayo!C27","v":0}]
[24,{"$f":"INDEX(Configuración!$A$3:'Configuración'!$B$52,A28,2)","v":"Hexano (en litros)"},0,null,null,null,null,null,null,null,null,{"$f":"Mayo!C28","v":0}]
[25,{"$f":"INDEX(Configuración!$A$3:'Configuración'!$B$52,A29,2)","v":"Hidróxido de Potasio (en kilogramos)"},0,null,null,null,null,null,null,null,null,{"$f":"Mayo!C29","v":0}]
[26,{"$f":"INDEX(Configuración!$A$3:'Configuración'!$B$52,A30,2)","v":"Hidróxido de Sodio (en kilogramos)"},0,null,null,null,null,null,null,null,null,{"$f":"Mayo!C30","v":0}]
[27,{"$f":"INDEX(Configuración!$A$3:'Configuración'!$B$52,A31,2)","v":"Oxido de Calcio (en kilogramos)"},0,null,null,null,null,null,null,null,null,{"$f":"Mayo!C31","v":0}]
[28,{"$f":"INDEX(Configuración!$A$3:'Configuración'!$B$52,A32,2)","v":"Permanganato de Potasio (en kilogramos)"},0,null,null,null,null,null,null,null,null,{"$f":"Mayo!C32","v":0}]
[29,{"$f":"INDEX(Configuración!$A$3:'Configuración'!$B$52,A33,2)","v":"Piperidina (en litros)"},0,null,null,null,null,null,null,null,null,{"$f":"Mayo!C33","v":0}]
[30,{"$f":"INDEX(Configuración!$A$3:'Configuración'!$B$52,A34,2)","v":"Sulfato de Sodio (en kilogramos)"},0,null,null,null,null,null,null,null,null,{"$f":"Mayo!C34","v":0}]
[31,{"$f":"INDEX(Configuración!$A$3:'Configuración'!$B$52,A35,2)","v":"Tolueno (en litros)"},0,null,null,null,null,null,null,null,null,{"$f":"Mayo!C35","v":0}]
[32,{"$f":"INDEX(Configuración!$A$3:'Configuración'!$B$52,A36,2)","v":"Xilenos (en litros)"},0,null,null,null,null,null,null,null,null,{"$f":"Mayo!C36","v":0}]
[33,{"$f":"INDEX(Configuración!$A$3:'Configuración'!$B$52,A37,2)","v":"Yodo (en litros)"},0,null,null,null,null,null,null,null,null,{"$f":"Mayo!C37","v":0}]
[34,{"$f":"INDEX(Configuración!$A$3:'Configuración'!$B$52,A38,2)","v":"-"},0,null,null,null,null,null,null,null,null,{"$f":"Mayo!C38","v":0}]
[35,{"$f":"INDEX(Configuración!$A$3:'Configuración'!$B$52,A39,2)","v":"-"},0,null,null,null,null,null,null,null,null,{"$f":"Mayo!C39","v":0}]
[36,{"$f":"INDEX(Configuración!$A$3:'Configuración'!$B$52,A40,2)","v":"-"},0,null,null,null,null,null,null,null,null,{"$f":"Mayo!C40","v":0}]
[37,{"$f":"INDEX(Configuración!$A$3:'Configuración'!$B$52,A41,2)","v":"-"},0,null,null,null,null,null,null,null,null,{"$f":"Mayo!C41","v":0}]
[38,{"$f":"INDEX(Configuración!$A$3:'Configuración'!$B$52,A42,2)","v":"-"},0,null,null,null,null,null,null,null,null,{"$f":"Mayo!C42","v":0}]
[39,{"$f":"INDEX(Configuración!$A$3:'Configuración'!$B$52,A43,2)","v":"-"},0,null,null,null,null,null,null,null,null,{"$f":"Mayo!C43","v":0}]
[40,{"$f":"INDEX(Configuración!$A$3:'Configuración'!$B$52,A44,2)","v":"-"},0,null,null,null,null,null,null,null,null,{"$f":"Mayo!C44","v":0}]
[41,{"$f":"INDEX(Configuración!$A$3:'Configuración'!$B$52,A45,2)","v":"-"},0,null,null,null,null,null,null,null,null,{"$f":"Mayo!C45","v":0}]
[42,{"$f":"INDEX(Configuración!$A$3:'Configuración'!$B$52,A46,2)","v":"-"},0,null,null,null,null,null,null,null,null,{"$f":"Mayo!C46","v":0}]
[43,{"$f":"INDEX(Configuración!$A$3:'Configuración'!$B$52,A47,2)","v":"-"},0,null,null,null,null,null,null,null,null,{"$f":"Mayo!C47","v":0}]
[44,{"$f":"INDEX(Configuración!$A$3:'Configuración'!$B$52,A48,2)","v":"-"},0,null,null,null,null,null,null,null,null,{"$f":"Mayo!C48","v":0}]
[45,{"$f":"INDEX(Configuración!$A$3:'Configuración'!$B$52,A49,2)","v":"-"},0,null,null,null,null,null,null,null,null,{"$f":"Mayo!C49","v":0}]
[46,{"$f":"INDEX(Configuración!$A$3:'Configuración'!$B$52,A50,2)","v":"-"},0,null,null,null,null,null,null,null,null,{"$f":"Mayo!C50","v":0}]
[47,{"$f":"INDEX(Configuración!$A$3:'Configuración'!$B$52,A51,2)","v":"-"},0,null,null,null,null,null,null,null,null,{"$f":"Mayo!C51","v":0}]
[48,{"$f":"INDEX(Configuración!$A$3:'Configuración'!$B$52,A52,2)","v":"-"},0,null,null,null,null,null,null,null,null,{"$f":"Mayo!C52","v":0}]
[49,{"$f":"INDEX(Configuración!$A$3:'Configuración'!$B$52,A53,2)","v":"-"},0,null,null,null,null,null,null,null,null,{"$f":"Mayo!C53","v":0}]
[50,{"$f":"INDEX(Configuración!$A$3:'Configuración'!$B$52,A54,2)","v":"-"},0,null,null,null,null,null,null,null,null,{"$f":"Mayo!C54","v":0}]

{"sheet":"Julio","index":6,"n_rows":54,"n_cols":12,"rows_kept":54,"cut":false,"hidden":false,"merged":[]}
[null,"INFORME RENPRE MES","JULIO",{"$f":"Configuración!E2","v":2018},"SECCION",{"$f":"Configuración!G2","v":"TOXICO"}]
[]
[null,null,"STOCK","INGRESO 1","INGRESO 1","INGRESO 1","INGRESO 2","INGRESO 2","INGRESO 2","MERMA",null,"STOCK"]
["N°","SUSTANCIA CONTROLADA","ACTUAL","FECHA","CANTIDAD","REMITO","FECHA","CANTIDAD","REMITO","MENSUAL","OBSERVACIONES","ANTERIOR"]
[1,{"$f":"INDEX(Configuración!$A$3:'Configuración'!$B$52,A5,2)","v":"Acetato Etílico (en litros)"},{"$f":"$L5+$E5+$H5-$J5","v":0},null,null,null,null,null,null,null,null,{"$f":"Junio!C5","v":0}]
[2,{"$f":"INDEX(Configuración!$A$3:'Configuración'!$B$52,A6,2)","v":"Acetona (en litros)"},{"$f":"$L6+$E6+$H6-$J6","v":0},null,null,null,null,null,null,null,null,{"$f":"Junio!C6","v":0}]
[3,{"$f":"INDEX(Configuración!$A$3:'Configuración'!$B$52,A7,2)","v":"Acido Acético (en litros)"},0,null,null,null,null,null,null,null,null,{"$f":"Junio!C7","v":0}]
[4,{"$f":"INDEX(Configuración!$A$3:'Configuración'!$B$52,A8,2)","v":"Acido Clorhídrico (en litros)"},0,null,null,null,null,null,null,null,null,{"$f":"Junio!C8","v":0}]
[5,{"$f":"INDEX(Configuración!$A$3:'Configuración'!$B$52,A9,2)","v":"Acido Fórmico, sales y sus derivados (en litros)"},0,null,null,null,null,null,null,null,null,{"$f":"Junio!C9","v":0}]
[6,{"$f":"INDEX(Configuración!$A$3:'Configuración'!$B$52,A10,2)","v":"Acido Sulfúrico (en litros)"},0,null,null,null,null,null,null,null,null,{"$f":"Junio!C10","v":0}]
[7,{"$f":"INDEX(Configuración!$A$3:'Configuración'!$B$52,A11,2)","v":"Alcohol Etílico (en litros)"},0,null,null,null,null,null,null,null,null,{"$f":"Junio!C11","v":0}]
[8,{"$f":"INDEX(Configuración!$A$3:'Configuración'!$B$52,A12,2)","v":"Alcohol Isobutílico (en litros)"},0,null,null,null,null,null,null,null,null,{"$f":"Junio!C12","v":0}]
[9,{"$f":"INDEX(Configuración!$A$3:'Configuración'!$B$52,A13,2)","v":"Alcohol Isopropílico (en litros)"},0,null,null,null,null,null,null,null,null,{"$f":"Junio!C13","v":0}]
[10,{"$f":"INDEX(Configuración!$A$3:'Configuración'!$B$52,A14,2)","v":"Alcohol Metílico (en litros)"},0,null,null,null,null,null,null,null,null,{"$f":"Junio!C14","v":0}]
[11,{"$f":"INDEX(Configuración!$A$3:'Configuración'!$B$52,A15,2)","v":"Amoníaco Anhídro o en disolución acuosa (en litros)"},0,null,null,null,null,null,null,null,null,{"$f":"Junio!C15","v":0}]
[12,{"$f":"INDEX(Configuración!$A$3:'Configuración'!$B$52,A16,2)","v":"Anhídrido Acético (en litros)"},0,null,null,null,null,null,null,null,null,{"$f":"Junio!C16","v":0}]
[13,{"$f":"INDEX(Configuración!$A$3:'Configuración'!$B$52,A17,2)","v":"Benceno (en litros)"},0,null,null,null,null,null,null,null,null,{"$f":"Junio!C17","v":0}]
[14,{"$f":"INDEX(Configuración!$A$3:'Configuración'!$B$52,A18,2)","v":"Bicarbonato de Sodio (en kilogramos)"},0,null,null,null,null,null,null,null,null,{"$f":"Junio!C18","v":0}]
[15,{"$f":"INDEX(Configuración!$A$3:'Configuración'!$B$52,A19,2)","v":"Carbonato de Potasio (en kilogramos)"},0,null,null,null,null,null,null,null,null,{"$f":"Junio!C19","v":0}]
[16,{"$f":"INDEX(Configuración!$A$3:'Configuración'!$B$52,A20,2)","v":"Carbonato de Sodio (en kilogramos)"},0,null,null,null,null,null,null,null,null,{"$f":"Junio!C20","v":0}]
[17,{"$f":"INDEX(Configuración!$A$3:'Configuración'!$B$52,A21,2)","v":"Cianuro de Potasio (en kilogramos)"},0,null,null,null,null,null,null,null,null,{"$f":"Junio!C21","v":0}]
[18,{"$f":"INDEX(Configuración!$A$3:'Configuración'!$B$52,A22,2)","v":"Cianuro de Sodio (en kilogramos)"},0,null,null,null,null,null,null,null,null,{"$f":"Junio!C22","v":0}]
[19,{"$f":"INDEX(Configuración!$A$3:'Configuración'!$B$52,A23,2)","v":"Cloroformo (en litros)"},0,null,null,null,null,null,null,null,null,{"$f":"Junio!C23","v":0}]
[20,{"$f":"INDEX(Configuración!$A$3:'Configuración'!$B$52,A24,2)","v":"Cloruro de Amonio (en kilogramos)"},0,null,null,null,null,null,null,null,null,{"$f":"Junio!C24","v":0}]
[21,{"$f":"INDEX(Configuración!$A$3:'Configuración'!$B$52,A25,2)","v":"Cloruro de Metileno (en litros)"},0,null,null,null,null,null,null,null,null,{"$f":"Junio!C25","v":0}]
[22,{"$f":"INDEX(Configuración!$A$3:'Configuración'!$B$52,A26,2)","v":"Dietilamina (en litros)"},0,null,null,null,null,null,null,null,null,{"$f":"Junio!C26","v":0}]
[23,{"$f":"INDEX(Configuración!$A$3:'Configuración'!$B$52,A27,2)","v":"Eter Etílico (en litros)"},0,null,null,null,null,null,null,null,null,{"$f":"Junio!C27","v":0}]
[24,{"$f":"INDEX(Configuración!$A$3:'Configuración'!$B$52,A28,2)","v":"Hexano (en litros)"},0,null,null,null,null,null,null,null,null,{"$f":"Junio!C28","v":0}]
[25,{"$f":"INDEX(Configuración!$A$3:'Configuración'!$B$52,A29,2)","v":"Hidróxido de Potasio (en kilogramos)"},0,null,null,null,null,null,null,null,null,{"$f":"Junio!C29","v":0}]
[26,{"$f":"INDEX(Configuración!$A$3:'Configuración'!$B$52,A30,2)","v":"Hidróxido de Sodio (en kilogramos)"},0,null,null,null,null,null,null,null,null,{"$f":"Junio!C30","v":0}]
[27,{"$f":"INDEX(Configuración!$A$3:'Configuración'!$B$52,A31,2)","v":"Oxido de Calcio (en kilogramos)"},0,null,null,null,null,null,null,null,null,{"$f":"Junio!C31","v":0}]
[28,{"$f":"INDEX(Configuración!$A$3:'Configuración'!$B$52,A32,2)","v":"Permanganato de Potasio (en kilogramos)"},0,null,null,null,null,null,null,null,null,{"$f":"Junio!C32","v":0}]
[29,{"$f":"INDEX(Configuración!$A$3:'Configuración'!$B$52,A33,2)","v":"Piperidina (en litros)"},0,null,null,null,null,null,null,null,null,{"$f":"Junio!C33","v":0}]
[30,{"$f":"INDEX(Configuración!$A$3:'Configuración'!$B$52,A34,2)","v":"Sulfato de Sodio (en kilogramos)"},0,null,null,null,null,null,null,null,null,{"$f":"Junio!C34","v":0}]
[31,{"$f":"INDEX(Configuración!$A$3:'Configuración'!$B$52,A35,2)","v":"Tolueno (en litros)"},0,null,null,null,null,null,null,null,null,{"$f":"Junio!C35","v":0}]
[32,{"$f":"INDEX(Configuración!$A$3:'Configuración'!$B$52,A36,2)","v":"Xilenos (en litros)"},0,null,null,null,null,null,null,null,null,{"$f":"Junio!C36","v":0}]
[33,{"$f":"INDEX(Configuración!$A$3:'Configuración'!$B$52,A37,2)","v":"Yodo (en litros)"},0,null,null,null,null,null,null,null,null,{"$f":"Junio!C37","v":0}]
[34,{"$f":"INDEX(Configuración!$A$3:'Configuración'!$B$52,A38,2)","v":"-"},0,null,null,null,null,null,null,null,null,{"$f":"Junio!C38","v":0}]
[35,{"$f":"INDEX(Configuración!$A$3:'Configuración'!$B$52,A39,2)","v":"-"},0,null,null,null,null,null,null,null,null,{"$f":"Junio!C39","v":0}]
[36,{"$f":"INDEX(Configuración!$A$3:'Configuración'!$B$52,A40,2)","v":"-"},0,null,null,null,null,null,null,null,null,{"$f":"Junio!C40","v":0}]
[37,{"$f":"INDEX(Configuración!$A$3:'Configuración'!$B$52,A41,2)","v":"-"},0,null,null,null,null,null,null,null,null,{"$f":"Junio!C41","v":0}]
[38,{"$f":"INDEX(Configuración!$A$3:'Configuración'!$B$52,A42,2)","v":"-"},0,null,null,null,null,null,null,null,null,{"$f":"Junio!C42","v":0}]
[39,{"$f":"INDEX(Configuración!$A$3:'Configuración'!$B$52,A43,2)","v":"-"},0,null,null,null,null,null,null,null,null,{"$f":"Junio!C43","v":0}]
[40,{"$f":"INDEX(Configuración!$A$3:'Configuración'!$B$52,A44,2)","v":"-"},0,null,null,null,null,null,null,null,null,{"$f":"Junio!C44","v":0}]
[41,{"$f":"INDEX(Configuración!$A$3:'Configuración'!$B$52,A45,2)","v":"-"},0,null,null,null,null,null,null,null,null,{"$f":"Junio!C45","v":0}]
[42,{"$f":"INDEX(Configuración!$A$3:'Configuración'!$B$52,A46,2)","v":"-"},0,null,null,null,null,null,null,null,null,{"$f":"Junio!C46","v":0}]
[43,{"$f":"INDEX(Configuración!$A$3:'Configuración'!$B$52,A47,2)","v":"-"},0,null,null,null,null,null,null,null,null,{"$f":"Junio!C47","v":0}]
[44,{"$f":"INDEX(Configuración!$A$3:'Configuración'!$B$52,A48,2)","v":"-"},0,null,null,null,null,null,null,null,null,{"$f":"Junio!C48","v":0}]
[45,{"$f":"INDEX(Configuración!$A$3:'Configuración'!$B$52,A49,2)","v":"-"},0,null,null,null,null,null,null,null,null,{"$f":"Junio!C49","v":0}]
[46,{"$f":"INDEX(Configuración!$A$3:'Configuración'!$B$52,A50,2)","v":"-"},0,null,null,null,null,null,null,null,null,{"$f":"Junio!C50","v":0}]
[47,{"$f":"INDEX(Configuración!$A$3:'Configuración'!$B$52,A51,2)","v":"-"},0,null,null,null,null,null,null,null,null,{"$f":"Junio!C51","v":0}]
[48,{"$f":"INDEX(Configuración!$A$3:'Configuración'!$B$52,A52,2)","v":"-"},0,null,null,null,null,null,null,null,null,{"$f":"Junio!C52","v":0}]
[49,{"$f":"INDEX(Configuración!$A$3:'Configuración'!$B$52,A53,2)","v":"-"},0,null,null,null,null,null,null,null,null,{"$f":"Junio!C53","v":0}]
[50,{"$f":"INDEX(Configuración!$A$3:'Configuración'!$B$52,A54,2)","v":"-"},0,null,null,null,null,null,null,null,null,{"$f":"Junio!C54","v":0}]

{"sheet":"Agosto","index":7,"n_rows":54,"n_cols":12,"rows_kept":54,"cut":false,"hidden":false,"merged":[]}
[null,"INFORME RENPRE MES","AGOSTO",{"$f":"Configuración!E2","v":2018},"SECCION",{"$f":"Configuración!G2","v":"TOXICO"}]
[]
[null,null,"STOCK","INGRESO 1","INGRESO 1","INGRESO 1","INGRESO 2","INGRESO 2","INGRESO 2","MERMA",null,"STOCK"]
["N°","SUSTANCIA CONTROLADA","ACTUAL","FECHA","CANTIDAD","REMITO","FECHA","CANTIDAD","REMITO","MENSUAL","OBSERVACIONES","ANTERIOR"]
[1,{"$f":"INDEX(Configuración!$A$3:'Configuración'!$B$52,A5,2)","v":"Acetato Etílico (en litros)"},{"$f":"$L5+$E5+$H5-$J5","v":0},null,null,null,null,null,null,null,null,{"$f":"Julio!C5","v":0}]
[2,{"$f":"INDEX(Configuración!$A$3:'Configuración'!$B$52,A6,2)","v":"Acetona (en litros)"},{"$f":"$L6+$E6+$H6-$J6","v":0},null,null,null,null,null,null,null,null,{"$f":"Julio!C6","v":0}]
[3,{"$f":"INDEX(Configuración!$A$3:'Configuración'!$B$52,A7,2)","v":"Acido Acético (en litros)"},0,null,null,null,null,null,null,null,null,{"$f":"Julio!C7","v":0}]
[4,{"$f":"INDEX(Configuración!$A$3:'Configuración'!$B$52,A8,2)","v":"Acido Clorhídrico (en litros)"},0,null,null,null,null,null,null,null,null,{"$f":"Julio!C8","v":0}]
[5,{"$f":"INDEX(Configuración!$A$3:'Configuración'!$B$52,A9,2)","v":"Acido Fórmico, sales y sus derivados (en litros)"},0,null,null,null,null,null,null,null,null,{"$f":"Julio!C9","v":0}]
[6,{"$f":"INDEX(Configuración!$A$3:'Configuración'!$B$52,A10,2)","v":"Acido Sulfúrico (en litros)"},0,null,null,null,null,null,null,null,null,{"$f":"Julio!C10","v":0}]
[7,{"$f":"INDEX(Configuración!$A$3:'Configuración'!$B$52,A11,2)","v":"Alcohol Etílico (en litros)"},0,null,null,null,null,null,null,null,null,{"$f":"Julio!C11","v":0}]
[8,{"$f":"INDEX(Configuración!$A$3:'Configuración'!$B$52,A12,2)","v":"Alcohol Isobutílico (en litros)"},0,null,null,null,null,null,null,null,null,{"$f":"Julio!C12","v":0}]
[9,{"$f":"INDEX(Configuración!$A$3:'Configuración'!$B$52,A13,2)","v":"Alcohol Isopropílico (en litros)"},0,null,null,null,null,null,null,null,null,{"$f":"Julio!C13","v":0}]
[10,{"$f":"INDEX(Configuración!$A$3:'Configuración'!$B$52,A14,2)","v":"Alcohol Metílico (en litros)"},0,null,null,null,null,null,null,null,null,{"$f":"Julio!C14","v":0}]
[11,{"$f":"INDEX(Configuración!$A$3:'Configuración'!$B$52,A15,2)","v":"Amoníaco Anhídro o en disolución acuosa (en litros)"},0,null,null,null,null,null,null,null,null,{"$f":"Julio!C15","v":0}]
[12,{"$f":"INDEX(Configuración!$A$3:'Configuración'!$B$52,A16,2)","v":"Anhídrido Acético (en litros)"},0,null,null,null,null,null,null,null,null,{"$f":"Julio!C16","v":0}]
[13,{"$f":"INDEX(Configuración!$A$3:'Configuración'!$B$52,A17,2)","v":"Benceno (en litros)"},0,null,null,null,null,null,null,null,null,{"$f":"Julio!C17","v":0}]
[14,{"$f":"INDEX(Configuración!$A$3:'Configuración'!$B$52,A18,2)","v":"Bicarbonato de Sodio (en kilogramos)"},0,null,null,null,null,null,null,null,null,{"$f":"Julio!C18","v":0}]
[15,{"$f":"INDEX(Configuración!$A$3:'Configuración'!$B$52,A19,2)","v":"Carbonato de Potasio (en kilogramos)"},0,null,null,null,null,null,null,null,null,{"$f":"Julio!C19","v":0}]
[16,{"$f":"INDEX(Configuración!$A$3:'Configuración'!$B$52,A20,2)","v":"Carbonato de Sodio (en kilogramos)"},0,null,null,null,null,null,null,null,null,{"$f":"Julio!C20","v":0}]
[17,{"$f":"INDEX(Configuración!$A$3:'Configuración'!$B$52,A21,2)","v":"Cianuro de Potasio (en kilogramos)"},0,null,null,null,null,null,null,null,null,{"$f":"Julio!C21","v":0}]
[18,{"$f":"INDEX(Configuración!$A$3:'Configuración'!$B$52,A22,2)","v":"Cianuro de Sodio (en kilogramos)"},0,null,null,null,null,null,null,null,null,{"$f":"Julio!C22","v":0}]
[19,{"$f":"INDEX(Configuración!$A$3:'Configuración'!$B$52,A23,2)","v":"Cloroformo (en litros)"},0,null,null,null,null,null,null,null,null,{"$f":"Julio!C23","v":0}]
[20,{"$f":"INDEX(Configuración!$A$3:'Configuración'!$B$52,A24,2)","v":"Cloruro de Amonio (en kilogramos)"},0,null,null,null,null,null,null,null,null,{"$f":"Julio!C24","v":0}]
[21,{"$f":"INDEX(Configuración!$A$3:'Configuración'!$B$52,A25,2)","v":"Cloruro de Metileno (en litros)"},0,null,null,null,null,null,null,null,null,{"$f":"Julio!C25","v":0}]
[22,{"$f":"INDEX(Configuración!$A$3:'Configuración'!$B$52,A26,2)","v":"Dietilamina (en litros)"},0,null,null,null,null,null,null,null,null,{"$f":"Julio!C26","v":0}]
[23,{"$f":"INDEX(Configuración!$A$3:'Configuración'!$B$52,A27,2)","v":"Eter Etílico (en litros)"},0,null,null,null,null,null,null,null,null,{"$f":"Julio!C27","v":0}]
[24,{"$f":"INDEX(Configuración!$A$3:'Configuración'!$B$52,A28,2)","v":"Hexano (en litros)"},0,null,null,null,null,null,null,null,null,{"$f":"Julio!C28","v":0}]
[25,{"$f":"INDEX(Configuración!$A$3:'Configuración'!$B$52,A29,2)","v":"Hidróxido de Potasio (en kilogramos)"},0,null,null,null,null,null,null,null,null,{"$f":"Julio!C29","v":0}]
[26,{"$f":"INDEX(Configuración!$A$3:'Configuración'!$B$52,A30,2)","v":"Hidróxido de Sodio (en kilogramos)"},0,null,null,null,null,null,null,null,null,{"$f":"Julio!C30","v":0}]
[27,{"$f":"INDEX(Configuración!$A$3:'Configuración'!$B$52,A31,2)","v":"Oxido de Calcio (en kilogramos)"},0,null,null,null,null,null,null,null,null,{"$f":"Julio!C31","v":0}]
[28,{"$f":"INDEX(Configuración!$A$3:'Configuración'!$B$52,A32,2)","v":"Permanganato de Potasio (en kilogramos)"},0,null,null,null,null,null,null,null,null,{"$f":"Julio!C32","v":0}]
[29,{"$f":"INDEX(Configuración!$A$3:'Configuración'!$B$52,A33,2)","v":"Piperidina (en litros)"},0,null,null,null,null,null,null,null,null,{"$f":"Julio!C33","v":0}]
[30,{"$f":"INDEX(Configuración!$A$3:'Configuración'!$B$52,A34,2)","v":"Sulfato de Sodio (en kilogramos)"},0,null,null,null,null,null,null,null,null,{"$f":"Julio!C34","v":0}]
[31,{"$f":"INDEX(Configuración!$A$3:'Configuración'!$B$52,A35,2)","v":"Tolueno (en litros)"},0,null,null,null,null,null,null,null,null,{"$f":"Julio!C35","v":0}]
[32,{"$f":"INDEX(Configuración!$A$3:'Configuración'!$B$52,A36,2)","v":"Xilenos (en litros)"},0,null,null,null,null,null,null,null,null,{"$f":"Julio!C36","v":0}]
[33,{"$f":"INDEX(Configuración!$A$3:'Configuración'!$B$52,A37,2)","v":"Yodo (en litros)"},0,null,null,null,null,null,null,null,null,{"$f":"Julio!C37","v":0}]
[34,{"$f":"INDEX(Configuración!$A$3:'Configuración'!$B$52,A38,2)","v":"-"},0,null,null,null,null,null,null,null,null,{"$f":"Julio!C38","v":0}]
[35,{"$f":"INDEX(Configuración!$A$3:'Configuración'!$B$52,A39,2)","v":"-"},0,null,null,null,null,null,null,null,null,{"$f":"Julio!C39","v":0}]
[36,{"$f":"INDEX(Configuración!$A$3:'Configuración'!$B$52,A40,2)","v":"-"},0,null,null,null,null,null,null,null,null,{"$f":"Julio!C40","v":0}]
[37,{"$f":"INDEX(Configuración!$A$3:'Configuración'!$B$52,A41,2)","v":"-"},0,null,null,null,null,null,null,null,null,{"$f":"Julio!C41","v":0}]
[38,{"$f":"INDEX(Configuración!$A$3:'Configuración'!$B$52,A42,2)","v":"-"},0,null,null,null,null,null,null,null,null,{"$f":"Julio!C42","v":0}]
[39,{"$f":"INDEX(Configuración!$A$3:'Configuración'!$B$52,A43,2)","v":"-"},0,null,null,null,null,null,null,null,null,{"$f":"Julio!C43","v":0}]
[40,{"$f":"INDEX(Configuración!$A$3:'Configuración'!$B$52,A44,2)","v":"-"},0,null,null,null,null,null,null,null,null,{"$f":"Julio!C44","v":0}]
[41,{"$f":"INDEX(Configuración!$A$3:'Configuración'!$B$52,A45,2)","v":"-"},0,null,null,null,null,null,null,null,null,{"$f":"Julio!C45","v":0}]
[42,{"$f":"INDEX(Configuración!$A$3:'Configuración'!$B$52,A46,2)","v":"-"},0,null,null,null,null,null,null,null,null,{"$f":"Julio!C46","v":0}]
[43,{"$f":"INDEX(Configuración!$A$3:'Configuración'!$B$52,A47,2)","v":"-"},0,null,null,null,null,null,null,null,null,{"$f":"Julio!C47","v":0}]
[44,{"$f":"INDEX(Configuración!$A$3:'Configuración'!$B$52,A48,2)","v":"-"},0,null,null,null,null,null,null,null,null,{"$f":"Julio!C48","v":0}]
[45,{"$f":"INDEX(Configuración!$A$3:'Configuración'!$B$52,A49,2)","v":"-"},0,null,null,null,null,null,null,null,null,{"$f":"Julio!C49","v":0}]
[46,{"$f":"INDEX(Configuración!$A$3:'Configuración'!$B$52,A50,2)","v":"-"},0,null,null,null,null,null,null,null,null,{"$f":"Julio!C50","v":0}]
[47,{"$f":"INDEX(Configuración!$A$3:'Configuración'!$B$52,A51,2)","v":"-"},0,null,null,null,null,null,null,null,null,{"$f":"Julio!C51","v":0}]
[48,{"$f":"INDEX(Configuración!$A$3:'Configuración'!$B$52,A52,2)","v":"-"},0,null,null,null,null,null,null,null,null,{"$f":"Julio!C52","v":0}]
[49,{"$f":"INDEX(Configuración!$A$3:'Configuración'!$B$52,A53,2)","v":"-"},0,null,null,null,null,null,null,null,null,{"$f":"Julio!C53","v":0}]
[50,{"$f":"INDEX(Configuración!$A$3:'Configuración'!$B$52,A54,2)","v":"-"},0,null,null,null,null,null,null,null,null,{"$f":"Julio!C54","v":0}]

{"sheet":"Setiembre","index":8,"n_rows":54,"n_cols":12,"rows_kept":54,"cut":false,"hidden":false,"merged":[]}
[null,"INFORME RENPRE MES","SETIEMBRE",{"$f":"Configuración!E2","v":2018},"SECCION",{"$f":"Configuración!G2","v":"TOXICO"}]
[]
[null,null,"STOCK","INGRESO 1","INGRESO 1","INGRESO 1","INGRESO 2","INGRESO 2","INGRESO 2","MERMA",null,"STOCK"]
["N°","SUSTANCIA CONTROLADA","ACTUAL","FECHA","CANTIDAD","REMITO","FECHA","CANTIDAD","REMITO","MENSUAL","OBSERVACIONES","ANTERIOR"]
[1,{"$f":"INDEX(Configuración!$A$3:'Configuración'!$B$52,A5,2)","v":"Acetato Etílico (en litros)"},{"$f":"$L5+$E5+$H5-$J5","v":0},null,null,null,null,null,null,null,null,{"$f":"Agosto!C5","v":0}]
[2,{"$f":"INDEX(Configuración!$A$3:'Configuración'!$B$52,A6,2)","v":"Acetona (en litros)"},{"$f":"$L6+$E6+$H6-$J6","v":0},null,null,null,null,null,null,null,null,{"$f":"Agosto!C6","v":0}]
[3,{"$f":"INDEX(Configuración!$A$3:'Configuración'!$B$52,A7,2)","v":"Acido Acético (en litros)"},0,null,null,null,null,null,null,null,null,{"$f":"Agosto!C7","v":0}]
[4,{"$f":"INDEX(Configuración!$A$3:'Configuración'!$B$52,A8,2)","v":"Acido Clorhídrico (en litros)"},0,null,null,null,null,null,null,null,null,{"$f":"Agosto!C8","v":0}]
[5,{"$f":"INDEX(Configuración!$A$3:'Configuración'!$B$52,A9,2)","v":"Acido Fórmico, sales y sus derivados (en litros)"},0,null,null,null,null,null,null,null,null,{"$f":"Agosto!C9","v":0}]
[6,{"$f":"INDEX(Configuración!$A$3:'Configuración'!$B$52,A10,2)","v":"Acido Sulfúrico (en litros)"},0,null,null,null,null,null,null,null,null,{"$f":"Agosto!C10","v":0}]
[7,{"$f":"INDEX(Configuración!$A$3:'Configuración'!$B$52,A11,2)","v":"Alcohol Etílico (en litros)"},0,null,null,null,null,null,null,null,null,{"$f":"Agosto!C11","v":0}]
[8,{"$f":"INDEX(Configuración!$A$3:'Configuración'!$B$52,A12,2)","v":"Alcohol Isobutílico (en litros)"},0,null,null,null,null,null,null,null,null,{"$f":"Agosto!C12","v":0}]
[9,{"$f":"INDEX(Configuración!$A$3:'Configuración'!$B$52,A13,2)","v":"Alcohol Isopropílico (en litros)"},0,null,null,null,null,null,null,null,null,{"$f":"Agosto!C13","v":0}]
[10,{"$f":"INDEX(Configuración!$A$3:'Configuración'!$B$52,A14,2)","v":"Alcohol Metílico (en litros)"},0,null,null,null,null,null,null,null,null,{"$f":"Agosto!C14","v":0}]
[11,{"$f":"INDEX(Configuración!$A$3:'Configuración'!$B$52,A15,2)","v":"Amoníaco Anhídro o en disolución acuosa (en litros)"},0,null,null,null,null,null,null,null,null,{"$f":"Agosto!C15","v":0}]
[12,{"$f":"INDEX(Configuración!$A$3:'Configuración'!$B$52,A16,2)","v":"Anhídrido Acético (en litros)"},0,null,null,null,null,null,null,null,null,{"$f":"Agosto!C16","v":0}]
[13,{"$f":"INDEX(Configuración!$A$3:'Configuración'!$B$52,A17,2)","v":"Benceno (en litros)"},0,null,null,null,null,null,null,null,null,{"$f":"Agosto!C17","v":0}]
[14,{"$f":"INDEX(Configuración!$A$3:'Configuración'!$B$52,A18,2)","v":"Bicarbonato de Sodio (en kilogramos)"},0,null,null,null,null,null,null,null,null,{"$f":"Agosto!C18","v":0}]
[15,{"$f":"INDEX(Configuración!$A$3:'Configuración'!$B$52,A19,2)","v":"Carbonato de Potasio (en kilogramos)"},0,null,null,null,null,null,null,null,null,{"$f":"Agosto!C19","v":0}]
[16,{"$f":"INDEX(Configuración!$A$3:'Configuración'!$B$52,A20,2)","v":"Carbonato de Sodio (en kilogramos)"},0,null,null,null,null,null,null,null,null,{"$f":"Agosto!C20","v":0}]
[17,{"$f":"INDEX(Configuración!$A$3:'Configuración'!$B$52,A21,2)","v":"Cianuro de Potasio (en kilogramos)"},0,null,null,null,null,null,null,null,null,{"$f":"Agosto!C21","v":0}]
[18,{"$f":"INDEX(Configuración!$A$3:'Configuración'!$B$52,A22,2)","v":"Cianuro de Sodio (en kilogramos)"},0,null,null,null,null,null,null,null,null,{"$f":"Agosto!C22","v":0}]
[19,{"$f":"INDEX(Configuración!$A$3:'Configuración'!$B$52,A23,2)","v":"Cloroformo (en litros)"},0,null,null,null,null,null,null,null,null,{"$f":"Agosto!C23","v":0}]
[20,{"$f":"INDEX(Configuración!$A$3:'Configuración'!$B$52,A24,2)","v":"Cloruro de Amonio (en kilogramos)"},0,null,null,null,null,null,null,null,null,{"$f":"Agosto!C24","v":0}]
[21,{"$f":"INDEX(Configuración!$A$3:'Configuración'!$B$52,A25,2)","v":"Cloruro de Metileno (en litros)"},0,null,null,null,null,null,null,null,null,{"$f":"Agosto!C25","v":0}]
[22,{"$f":"INDEX(Configuración!$A$3:'Configuración'!$B$52,A26,2)","v":"Dietilamina (en litros)"},0,null,null,null,null,null,null,null,null,{"$f":"Agosto!C26","v":0}]
[23,{"$f":"INDEX(Configuración!$A$3:'Configuración'!$B$52,A27,2)","v":"Eter Etílico (en litros)"},0,null,null,null,null,null,null,null,null,{"$f":"Agosto!C27","v":0}]
[24,{"$f":"INDEX(Configuración!$A$3:'Configuración'!$B$52,A28,2)","v":"Hexano (en litros)"},0,null,null,null,null,null,null,null,null,{"$f":"Agosto!C28","v":0}]
[25,{"$f":"INDEX(Configuración!$A$3:'Configuración'!$B$52,A29,2)","v":"Hidróxido de Potasio (en kilogramos)"},0,null,null,null,null,null,null,null,null,{"$f":"Agosto!C29","v":0}]
[26,{"$f":"INDEX(Configuración!$A$3:'Configuración'!$B$52,A30,2)","v":"Hidróxido de Sodio (en kilogramos)"},0,null,null,null,null,null,null,null,null,{"$f":"Agosto!C30","v":0}]
[27,{"$f":"INDEX(Configuración!$A$3:'Configuración'!$B$52,A31,2)","v":"Oxido de Calcio (en kilogramos)"},0,null,null,null,null,null,null,null,null,{"$f":"Agosto!C31","v":0}]
[28,{"$f":"INDEX(Configuración!$A$3:'Configuración'!$B$52,A32,2)","v":"Permanganato de Potasio (en kilogramos)"},0,null,null,null,null,null,null,null,null,{"$f":"Agosto!C32","v":0}]
[29,{"$f":"INDEX(Configuración!$A$3:'Configuración'!$B$52,A33,2)","v":"Piperidina (en litros)"},0,null,null,null,null,null,null,null,null,{"$f":"Agosto!C33","v":0}]
[30,{"$f":"INDEX(Configuración!$A$3:'Configuración'!$B$52,A34,2)","v":"Sulfato de Sodio (en kilogramos)"},0,null,null,null,null,null,null,null,null,{"$f":"Agosto!C34","v":0}]
[31,{"$f":"INDEX(Configuración!$A$3:'Configuración'!$B$52,A35,2)","v":"Tolueno (en litros)"},0,null,null,null,null,null,null,null,null,{"$f":"Agosto!C35","v":0}]
[32,{"$f":"INDEX(Configuración!$A$3:'Configuración'!$B$52,A36,2)","v":"Xilenos (en litros)"},0,null,null,null,null,null,null,null,null,{"$f":"Agosto!C36","v":0}]
[33,{"$f":"INDEX(Configuración!$A$3:'Configuración'!$B$52,A37,2)","v":"Yodo (en litros)"},0,null,null,null,null,null,null,null,null,{"$f":"Agosto!C37","v":0}]
[34,{"$f":"INDEX(Configuración!$A$3:'Configuración'!$B$52,A38,2)","v":"-"},0,null,null,null,null,null,null,null,null,{"$f":"Agosto!C38","v":0}]
[35,{"$f":"INDEX(Configuración!$A$3:'Configuración'!$B$52,A39,2)","v":"-"},0,null,null,null,null,null,null,null,null,{"$f":"Agosto!C39","v":0}]
[36,{"$f":"INDEX(Configuración!$A$3:'Configuración'!$B$52,A40,2)","v":"-"},0,null,null,null,null,null,null,null,null,{"$f":"Agosto!C40","v":0}]
[37,{"$f":"INDEX(Configuración!$A$3:'Configuración'!$B$52,A41,2)","v":"-"},0,null,null,null,null,null,null,null,null,{"$f":"Agosto!C41","v":0}]
[38,{"$f":"INDEX(Configuración!$A$3:'Configuración'!$B$52,A42,2)","v":"-"},0,null,null,null,null,null,null,null,null,{"$f":"Agosto!C42","v":0}]
[39,{"$f":"INDEX(Configuración!$A$3:'Configuración'!$B$52,A43,2)","v":"-"},0,null,null,null,null,null,null,null,null,{"$f":"Agosto!C43","v":0}]
[40,{"$f":"INDEX(Configuración!$A$3:'Configuración'!$B$52,A44,2)","v":"-"},0,null,null,null,null,null,null,null,null,{"$f":"Agosto!C44","v":0}]
[41,{"$f":"INDEX(Configuración!$A$3:'Configuración'!$B$52,A45,2)","v":"-"},0,null,null,null,null,null,null,null,null,{"$f":"Agosto!C45","v":0}]
[42,{"$f":"INDEX(Configuración!$A$3:'Configuración'!$B$52,A46,2)","v":"-"},0,null,null,null,null,null,null,null,null,{"$f":"Agosto!C46","v":0}]
[43,{"$f":"INDEX(Configuración!$A$3:'Configuración'!$B$52,A47,2)","v":"-"},0,null,null,null,null,null,null,null,null,{"$f":"Agosto!C47","v":0}]
[44,{"$f":"INDEX(Configuración!$A$3:'Configuración'!$B$52,A48,2)","v":"-"},0,null,null,null,null,null,null,null,null,{"$f":"Agosto!C48","v":0}]
[45,{"$f":"INDEX(Configuración!$A$3:'Configuración'!$B$52,A49,2)","v":"-"},0,null,null,null,null,null,null,null,null,{"$f":"Agosto!C49","v":0}]
[46,{"$f":"INDEX(Configuración!$A$3:'Configuración'!$B$52,A50,2)","v":"-"},0,null,null,null,null,null,null,null,null,{"$f":"Agosto!C50","v":0}]
[47,{"$f":"INDEX(Configuración!$A$3:'Configuración'!$B$52,A51,2)","v":"-"},0,null,null,null,null,null,null,null,null,{"$f":"Agosto!C51","v":0}]
[48,{"$f":"INDEX(Configuración!$A$3:'Configuración'!$B$52,A52,2)","v":"-"},0,null,null,null,null,null,null,null,null,{"$f":"Agosto!C52","v":0}]
[49,{"$f":"INDEX(Configuración!$A$3:'Configuración'!$B$52,A53,2)","v":"-"},0,null,null,null,null,null,null,null,null,{"$f":"Agosto!C53","v":0}]
[50,{"$f":"INDEX(Configuración!$A$3:'Configuración'!$B$52,A54,2)","v":"-"},0,null,null,null,null,null,null,null,null,{"$f":"Agosto!C54","v":0}]

{"sheet":"Octubre","index":9,"n_rows":54,"n_cols":12,"rows_kept":54,"cut":false,"hidden":false,"merged":[]}
[null,"INFORME RENPRE MES","OCTUBRE",{"$f":"Configuración!E2","v":2018},"SECCION",{"$f":"Configuración!G2","v":"TOXICO"}]
[]
[null,null,"STOCK","INGRESO 1","INGRESO 1","INGRESO 1","INGRESO 2","INGRESO 2","INGRESO 2","MERMA",null,"STOCK"]
["N°","SUSTANCIA CONTROLADA","ACTUAL","FECHA","CANTIDAD","REMITO","FECHA","CANTIDAD","REMITO","MENSUAL","OBSERVACIONES","ANTERIOR"]
[1,{"$f":"INDEX(Configuración!$A$3:'Configuración'!$B$52,A5,2)","v":"Acetato Etílico (en litros)"},{"$f":"$L5+$E5+$H5-$J5","v":0},null,null,null,null,null,null,null,null,{"$f":"Setiembre!C5","v":0}]
[2,{"$f":"INDEX(Configuración!$A$3:'Configuración'!$B$52,A6,2)","v":"Acetona (en litros)"},{"$f":"$L6+$E6+$H6-$J6","v":0},null,null,null,null,null,null,null,null,{"$f":"Setiembre!C6","v":0}]
[3,{"$f":"INDEX(Configuración!$A$3:'Configuración'!$B$52,A7,2)","v":"Acido Acético (en litros)"},0,null,null,null,null,null,null,null,null,{"$f":"Setiembre!C7","v":0}]
[4,{"$f":"INDEX(Configuración!$A$3:'Configuración'!$B$52,A8,2)","v":"Acido Clorhídrico (en litros)"},0,null,null,null,null,null,null,null,null,{"$f":"Setiembre!C8","v":0}]
[5,{"$f":"INDEX(Configuración!$A$3:'Configuración'!$B$52,A9,2)","v":"Acido Fórmico, sales y sus derivados (en litros)"},0,null,null,null,null,null,null,null,null,{"$f":"Setiembre!C9","v":0}]
[6,{"$f":"INDEX(Configuración!$A$3:'Configuración'!$B$52,A10,2)","v":"Acido Sulfúrico (en litros)"},0,null,null,null,null,null,null,null,null,{"$f":"Setiembre!C10","v":0}]
[7,{"$f":"INDEX(Configuración!$A$3:'Configuración'!$B$52,A11,2)","v":"Alcohol Etílico (en litros)"},0,null,null,null,null,null,null,null,null,{"$f":"Setiembre!C11","v":0}]
[8,{"$f":"INDEX(Configuración!$A$3:'Configuración'!$B$52,A12,2)","v":"Alcohol Isobutílico (en litros)"},0,null,null,null,null,null,null,null,null,{"$f":"Setiembre!C12","v":0}]
[9,{"$f":"INDEX(Configuración!$A$3:'Configuración'!$B$52,A13,2)","v":"Alcohol Isopropílico (en litros)"},0,null,null,null,null,null,null,null,null,{"$f":"Setiembre!C13","v":0}]
[10,{"$f":"INDEX(Configuración!$A$3:'Configuración'!$B$52,A14,2)","v":"Alcohol Metílico (en litros)"},0,null,null,null,null,null,null,null,null,{"$f":"Setiembre!C14","v":0}]
[11,{"$f":"INDEX(Configuración!$A$3:'Configuración'!$B$52,A15,2)","v":"Amoníaco Anhídro o en disolución acuosa (en litros)"},0,null,null,null,null,null,null,null,null,{"$f":"Setiembre!C15","v":0}]
[12,{"$f":"INDEX(Configuración!$A$3:'Configuración'!$B$52,A16,2)","v":"Anhídrido Acético (en litros)"},0,null,null,null,null,null,null,null,null,{"$f":"Setiembre!C16","v":0}]
[13,{"$f":"INDEX(Configuración!$A$3:'Configuración'!$B$52,A17,2)","v":"Benceno (en litros)"},0,null,null,null,null,null,null,null,null,{"$f":"Setiembre!C17","v":0}]
[14,{"$f":"INDEX(Configuración!$A$3:'Configuración'!$B$52,A18,2)","v":"Bicarbonato de Sodio (en kilogramos)"},0,null,null,null,null,null,null,null,null,{"$f":"Setiembre!C18","v":0}]
[15,{"$f":"INDEX(Configuración!$A$3:'Configuración'!$B$52,A19,2)","v":"Carbonato de Potasio (en kilogramos)"},0,null,null,null,null,null,null,null,null,{"$f":"Setiembre!C19","v":0}]
[16,{"$f":"INDEX(Configuración!$A$3:'Configuración'!$B$52,A20,2)","v":"Carbonato de Sodio (en kilogramos)"},0,null,null,null,null,null,null,null,null,{"$f":"Setiembre!C20","v":0}]
[17,{"$f":"INDEX(Configuración!$A$3:'Configuración'!$B$52,A21,2)","v":"Cianuro de Potasio (en kilogramos)"},0,null,null,null,null,null,null,null,null,{"$f":"Setiembre!C21","v":0}]
[18,{"$f":"INDEX(Configuración!$A$3:'Configuración'!$B$52,A22,2)","v":"Cianuro de Sodio (en kilogramos)"},0,null,null,null,null,null,null,null,null,{"$f":"Setiembre!C22","v":0}]
[19,{"$f":"INDEX(Configuración!$A$3:'Configuración'!$B$52,A23,2)","v":"Cloroformo (en litros)"},0,null,null,null,null,null,null,null,null,{"$f":"Setiembre!C23","v":0}]
[20,{"$f":"INDEX(Configuración!$A$3:'Configuración'!$B$52,A24,2)","v":"Cloruro de Amonio (en kilogramos)"},0,null,null,null,null,null,null,null,null,{"$f":"Setiembre!C24","v":0}]
[21,{"$f":"INDEX(Configuración!$A$3:'Configuración'!$B$52,A25,2)","v":"Cloruro de Metileno (en litros)"},0,null,null,null,null,null,null,null,null,{"$f":"Setiembre!C25","v":0}]
[22,{"$f":"INDEX(Configuración!$A$3:'Configuración'!$B$52,A26,2)","v":"Dietilamina (en litros)"},0,null,null,null,null,null,null,null,null,{"$f":"Setiembre!C26","v":0}]
[23,{"$f":"INDEX(Configuración!$A$3:'Configuración'!$B$52,A27,2)","v":"Eter Etílico (en litros)"},0,null,null,null,null,null,null,null,null,{"$f":"Setiembre!C27","v":0}]
[24,{"$f":"INDEX(Configuración!$A$3:'Configuración'!$B$52,A28,2)","v":"Hexano (en litros)"},0,null,null,null,null,null,null,null,null,{"$f":"Setiembre!C28","v":0}]
[25,{"$f":"INDEX(Configuración!$A$3:'Configuración'!$B$52,A29,2)","v":"Hidróxido de Potasio (en kilogramos)"},0,null,null,null,null,null,null,null,null,{"$f":"Setiembre!C29","v":0}]
[26,{"$f":"INDEX(Configuración!$A$3:'Configuración'!$B$52,A30,2)","v":"Hidróxido de Sodio (en kilogramos)"},0,null,null,null,null,null,null,null,null,{"$f":"Setiembre!C30","v":0}]
[27,{"$f":"INDEX(Configuración!$A$3:'Configuración'!$B$52,A31,2)","v":"Oxido de Calcio (en kilogramos)"},0,null,null,null,null,null,null,null,null,{"$f":"Setiembre!C31","v":0}]
[28,{"$f":"INDEX(Configuración!$A$3:'Configuración'!$B$52,A32,2)","v":"Permanganato de Potasio (en kilogramos)"},0,null,null,null,null,null,null,null,null,{"$f":"Setiembre!C32","v":0}]
[29,{"$f":"INDEX(Configuración!$A$3:'Configuración'!$B$52,A33,2)","v":"Piperidina (en litros)"},0,null,null,null,null,null,null,null,null,{"$f":"Setiembre!C33","v":0}]
[30,{"$f":"INDEX(Configuración!$A$3:'Configuración'!$B$52,A34,2)","v":"Sulfato de Sodio (en kilogramos)"},0,null,null,null,null,null,null,null,null,{"$f":"Setiembre!C34","v":0}]
[31,{"$f":"INDEX(Configuración!$A$3:'Configuración'!$B$52,A35,2)","v":"Tolueno (en litros)"},0,null,null,null,null,null,null,null,null,{"$f":"Setiembre!C35","v":0}]
[32,{"$f":"INDEX(Configuración!$A$3:'Configuración'!$B$52,A36,2)","v":"Xilenos (en litros)"},0,null,null,null,null,null,null,null,null,{"$f":"Setiembre!C36","v":0}]
[33,{"$f":"INDEX(Configuración!$A$3:'Configuración'!$B$52,A37,2)","v":"Yodo (en litros)"},0,null,null,null,null,null,null,null,null,{"$f":"Setiembre!C37","v":0}]
[34,{"$f":"INDEX(Configuración!$A$3:'Configuración'!$B$52,A38,2)","v":"-"},0,null,null,null,null,null,null,null,null,{"$f":"Setiembre!C38","v":0}]
[35,{"$f":"INDEX(Configuración!$A$3:'Configuración'!$B$52,A39,2)","v":"-"},0,null,null,null,null,null,null,null,null,{"$f":"Setiembre!C39","v":0}]
[36,{"$f":"INDEX(Configuración!$A$3:'Configuración'!$B$52,A40,2)","v":"-"},0,null,null,null,null,null,null,null,null,{"$f":"Setiembre!C40","v":0}]
[37,{"$f":"INDEX(Configuración!$A$3:'Configuración'!$B$52,A41,2)","v":"-"},0,null,null,null,null,null,null,null,null,{"$f":"Setiembre!C41","v":0}]
[38,{"$f":"INDEX(Configuración!$A$3:'Configuración'!$B$52,A42,2)","v":"-"},0,null,null,null,null,null,null,null,null,{"$f":"Setiembre!C42","v":0}]
[39,{"$f":"INDEX(Configuración!$A$3:'Configuración'!$B$52,A43,2)","v":"-"},0,null,null,null,null,null,null,null,null,{"$f":"Setiembre!C43","v":0}]
[40,{"$f":"INDEX(Configuración!$A$3:'Configuración'!$B$52,A44,2)","v":"-"},0,null,null,null,null,null,null,null,null,{"$f":"Setiembre!C44","v":0}]
[41,{"$f":"INDEX(Configuración!$A$3:'Configuración'!$B$52,A45,2)","v":"-"},0,null,null,null,null,null,null,null,null,{"$f":"Setiembre!C45","v":0}]
[42,{"$f":"INDEX(Configuración!$A$3:'Configuración'!$B$52,A46,2)","v":"-"},0,null,null,null,null,null,null,null,null,{"$f":"Setiembre!C46","v":0}]
[43,{"$f":"INDEX(Configuración!$A$3:'Configuración'!$B$52,A47,2)","v":"-"},0,null,null,null,null,null,null,null,null,{"$f":"Setiembre!C47","v":0}]
[44,{"$f":"INDEX(Configuración!$A$3:'Configuración'!$B$52,A48,2)","v":"-"},0,null,null,null,null,null,null,null,null,{"$f":"Setiembre!C48","v":0}]
[45,{"$f":"INDEX(Configuración!$A$3:'Configuración'!$B$52,A49,2)","v":"-"},0,null,null,null,null,null,null,null,null,{"$f":"Setiembre!C49","v":0}]
[46,{"$f":"INDEX(Configuración!$A$3:'Configuración'!$B$52,A50,2)","v":"-"},0,null,null,null,null,null,null,null,null,{"$f":"Setiembre!C50","v":0}]
[47,{"$f":"INDEX(Configuración!$A$3:'Configuración'!$B$52,A51,2)","v":"-"},0,null,null,null,null,null,null,null,null,{"$f":"Setiembre!C51","v":0}]
[48,{"$f":"INDEX(Configuración!$A$3:'Configuración'!$B$52,A52,2)","v":"-"},0,null,null,null,null,null,null,null,null,{"$f":"Setiembre!C52","v":0}]
[49,{"$f":"INDEX(Configuración!$A$3:'Configuración'!$B$52,A53,2)","v":"-"},0,null,null,null,null,null,null,null,null,{"$f":"Setiembre!C53","v":0}]
[50,{"$f":"INDEX(Configuración!$A$3:'Configuración'!$B$52,A54,2)","v":"-"},0,null,null,null,null,null,null,null,null,{"$f":"Setiembre!C54","v":0}]

{"sheet":"Noviembre","index":10,"n_rows":54,"n_cols":12,"rows_kept":54,"cut":false,"hidden":false,"merged":[]}
[null,"INFORME RENPRE MES","NOVIEMBRE",{"$f":"Configuración!E2","v":2018},"SECCION",{"$f":"Configuración!G2","v":"TOXICO"}]
[]
[null,null,"STOCK","INGRESO 1","INGRESO 1","INGRESO 1","INGRESO 2","INGRESO 2","INGRESO 2","MERMA",null,"STOCK"]
["N°","SUSTANCIA CONTROLADA","ACTUAL","FECHA","CANTIDAD","REMITO","FECHA","CANTIDAD","REMITO","MENSUAL","OBSERVACIONES","ANTERIOR"]
[1,{"$f":"INDEX(Configuración!$A$3:'Configuración'!$B$52,A5,2)","v":"Acetato Etílico (en litros)"},{"$f":"$L5+$E5+$H5-$J5","v":0},null,null,null,null,null,null,null,null,{"$f":"Octubre!C5","v":0}]
[2,{"$f":"INDEX(Configuración!$A$3:'Configuración'!$B$52,A6,2)","v":"Acetona (en litros)"},{"$f":"$L6+$E6+$H6-$J6","v":0},null,null,null,null,null,null,null,null,{"$f":"Octubre!C6","v":0}]
[3,{"$f":"INDEX(Configuración!$A$3:'Configuración'!$B$52,A7,2)","v":"Acido Acético (en litros)"},0,null,null,null,null,null,null,null,null,{"$f":"Octubre!C7","v":0}]
[4,{"$f":"INDEX(Configuración!$A$3:'Configuración'!$B$52,A8,2)","v":"Acido Clorhídrico (en litros)"},0,null,null,null,null,null,null,null,null,{"$f":"Octubre!C8","v":0}]
[5,{"$f":"INDEX(Configuración!$A$3:'Configuración'!$B$52,A9,2)","v":"Acido Fórmico, sales y sus derivados (en litros)"},0,null,null,null,null,null,null,null,null,{"$f":"Octubre!C9","v":0}]
[6,{"$f":"INDEX(Configuración!$A$3:'Configuración'!$B$52,A10,2)","v":"Acido Sulfúrico (en litros)"},0,null,null,null,null,null,null,null,null,{"$f":"Octubre!C10","v":0}]
[7,{"$f":"INDEX(Configuración!$A$3:'Configuración'!$B$52,A11,2)","v":"Alcohol Etílico (en litros)"},0,null,null,null,null,null,null,null,null,{"$f":"Octubre!C11","v":0}]
[8,{"$f":"INDEX(Configuración!$A$3:'Configuración'!$B$52,A12,2)","v":"Alcohol Isobutílico (en litros)"},0,null,null,null,null,null,null,null,null,{"$f":"Octubre!C12","v":0}]
[9,{"$f":"INDEX(Configuración!$A$3:'Configuración'!$B$52,A13,2)","v":"Alcohol Isopropílico (en litros)"},0,null,null,null,null,null,null,null,null,{"$f":"Octubre!C13","v":0}]
[10,{"$f":"INDEX(Configuración!$A$3:'Configuración'!$B$52,A14,2)","v":"Alcohol Metílico (en litros)"},0,null,null,null,null,null,null,null,null,{"$f":"Octubre!C14","v":0}]
[11,{"$f":"INDEX(Configuración!$A$3:'Configuración'!$B$52,A15,2)","v":"Amoníaco Anhídro o en disolución acuosa (en litros)"},0,null,null,null,null,null,null,null,null,{"$f":"Octubre!C15","v":0}]
[12,{"$f":"INDEX(Configuración!$A$3:'Configuración'!$B$52,A16,2)","v":"Anhídrido Acético (en litros)"},0,null,null,null,null,null,null,null,null,{"$f":"Octubre!C16","v":0}]
[13,{"$f":"INDEX(Configuración!$A$3:'Configuración'!$B$52,A17,2)","v":"Benceno (en litros)"},0,null,null,null,null,null,null,null,null,{"$f":"Octubre!C17","v":0}]
[14,{"$f":"INDEX(Configuración!$A$3:'Configuración'!$B$52,A18,2)","v":"Bicarbonato de Sodio (en kilogramos)"},0,null,null,null,null,null,null,null,null,{"$f":"Octubre!C18","v":0}]
[15,{"$f":"INDEX(Configuración!$A$3:'Configuración'!$B$52,A19,2)","v":"Carbonato de Potasio (en kilogramos)"},0,null,null,null,null,null,null,null,null,{"$f":"Octubre!C19","v":0}]
[16,{"$f":"INDEX(Configuración!$A$3:'Configuración'!$B$52,A20,2)","v":"Carbonato de Sodio (en kilogramos)"},0,null,null,null,null,null,null,null,null,{"$f":"Octubre!C20","v":0}]
[17,{"$f":"INDEX(Configuración!$A$3:'Configuración'!$B$52,A21,2)","v":"Cianuro de Potasio (en kilogramos)"},0,null,null,null,null,null,null,null,null,{"$f":"Octubre!C21","v":0}]
[18,{"$f":"INDEX(Configuración!$A$3:'Configuración'!$B$52,A22,2)","v":"Cianuro de Sodio (en kilogramos)"},0,null,null,null,null,null,null,null,null,{"$f":"Octubre!C22","v":0}]
[19,{"$f":"INDEX(Configuración!$A$3:'Configuración'!$B$52,A23,2)","v":"Cloroformo (en litros)"},0,null,null,null,null,null,null,null,null,{"$f":"Octubre!C23","v":0}]
[20,{"$f":"INDEX(Configuración!$A$3:'Configuración'!$B$52,A24,2)","v":"Cloruro de Amonio (en kilogramos)"},0,null,null,null,null,null,null,null,null,{"$f":"Octubre!C24","v":0}]
[21,{"$f":"INDEX(Configuración!$A$3:'Configuración'!$B$52,A25,2)","v":"Cloruro de Metileno (en litros)"},0,null,null,null,null,null,null,null,null,{"$f":"Octubre!C25","v":0}]
[22,{"$f":"INDEX(Configuración!$A$3:'Configuración'!$B$52,A26,2)","v":"Dietilamina (en litros)"},0,null,null,null,null,null,null,null,null,{"$f":"Octubre!C26","v":0}]
[23,{"$f":"INDEX(Configuración!$A$3:'Configuración'!$B$52,A27,2)","v":"Eter Etílico (en litros)"},0,null,null,null,null,null,null,null,null,{"$f":"Octubre!C27","v":0}]
[24,{"$f":"INDEX(Configuración!$A$3:'Configuración'!$B$52,A28,2)","v":"Hexano (en litros)"},0,null,null,null,null,null,null,null,null,{"$f":"Octubre!C28","v":0}]
[25,{"$f":"INDEX(Configuración!$A$3:'Configuración'!$B$52,A29,2)","v":"Hidróxido de Potasio (en kilogramos)"},0,null,null,null,null,null,null,null,null,{"$f":"Octubre!C29","v":0}]
[26,{"$f":"INDEX(Configuración!$A$3:'Configuración'!$B$52,A30,2)","v":"Hidróxido de Sodio (en kilogramos)"},0,null,null,null,null,null,null,null,null,{"$f":"Octubre!C30","v":0}]
[27,{"$f":"INDEX(Configuración!$A$3:'Configuración'!$B$52,A31,2)","v":"Oxido de Calcio (en kilogramos)"},0,null,null,null,null,null,null,null,null,{"$f":"Octubre!C31","v":0}]
[28,{"$f":"INDEX(Configuración!$A$3:'Configuración'!$B$52,A32,2)","v":"Permanganato de Potasio (en kilogramos)"},0,null,null,null,null,null,null,null,null,{"$f":"Octubre!C32","v":0}]
[29,{"$f":"INDEX(Configuración!$A$3:'Configuración'!$B$52,A33,2)","v":"Piperidina (en litros)"},0,null,null,null,null,null,null,null,null,{"$f":"Octubre!C33","v":0}]
[30,{"$f":"INDEX(Configuración!$A$3:'Configuración'!$B$52,A34,2)","v":"Sulfato de Sodio (en kilogramos)"},0,null,null,null,null,null,null,null,null,{"$f":"Octubre!C34","v":0}]
[31,{"$f":"INDEX(Configuración!$A$3:'Configuración'!$B$52,A35,2)","v":"Tolueno (en litros)"},0,null,null,null,null,null,null,null,null,{"$f":"Octubre!C35","v":0}]
[32,{"$f":"INDEX(Configuración!$A$3:'Configuración'!$B$52,A36,2)","v":"Xilenos (en litros)"},0,null,null,null,null,null,null,null,null,{"$f":"Octubre!C36","v":0}]
[33,{"$f":"INDEX(Configuración!$A$3:'Configuración'!$B$52,A37,2)","v":"Yodo (en litros)"},0,null,null,null,null,null,null,null,null,{"$f":"Octubre!C37","v":0}]
[34,{"$f":"INDEX(Configuración!$A$3:'Configuración'!$B$52,A38,2)","v":"-"},0,null,null,null,null,null,null,null,null,{"$f":"Octubre!C38","v":0}]
[35,{"$f":"INDEX(Configuración!$A$3:'Configuración'!$B$52,A39,2)","v":"-"},0,null,null,null,null,null,null,null,null,{"$f":"Octubre!C39","v":0}]
[36,{"$f":"INDEX(Configuración!$A$3:'Configuración'!$B$52,A40,2)","v":"-"},0,null,null,null,null,null,null,null,null,{"$f":"Octubre!C40","v":0}]
[37,{"$f":"INDEX(Configuración!$A$3:'Configuración'!$B$52,A41,2)","v":"-"},0,null,null,null,null,null,null,null,null,{"$f":"Octubre!C41","v":0}]
[38,{"$f":"INDEX(Configuración!$A$3:'Configuración'!$B$52,A42,2)","v":"-"},0,null,null,null,null,null,null,null,null,{"$f":"Octubre!C42","v":0}]
[39,{"$f":"INDEX(Configuración!$A$3:'Configuración'!$B$52,A43,2)","v":"-"},0,null,null,null,null,null,null,null,null,{"$f":"Octubre!C43","v":0}]
[40,{"$f":"INDEX(Configuración!$A$3:'Configuración'!$B$52,A44,2)","v":"-"},0,null,null,null,null,null,null,null,null,{"$f":"Octubre!C44","v":0}]
[41,{"$f":"INDEX(Configuración!$A$3:'Configuración'!$B$52,A45,2)","v":"-"},0,null,null,null,null,null,null,null,null,{"$f":"Octubre!C45","v":0}]
[42,{"$f":"INDEX(Configuración!$A$3:'Configuración'!$B$52,A46,2)","v":"-"},0,null,null,null,null,null,null,null,null,{"$f":"Octubre!C46","v":0}]
[43,{"$f":"INDEX(Configuración!$A$3:'Configuración'!$B$52,A47,2)","v":"-"},0,null,null,null,null,null,null,null,null,{"$f":"Octubre!C47","v":0}]
[44,{"$f":"INDEX(Configuración!$A$3:'Configuración'!$B$52,A48,2)","v":"-"},0,null,null,null,null,null,null,null,null,{"$f":"Octubre!C48","v":0}]
[45,{"$f":"INDEX(Configuración!$A$3:'Configuración'!$B$52,A49,2)","v":"-"},0,null,null,null,null,null,null,null,null,{"$f":"Octubre!C49","v":0}]
[46,{"$f":"INDEX(Configuración!$A$3:'Configuración'!$B$52,A50,2)","v":"-"},0,null,null,null,null,null,null,null,null,{"$f":"Octubre!C50","v":0}]
[47,{"$f":"INDEX(Configuración!$A$3:'Configuración'!$B$52,A51,2)","v":"-"},0,null,null,null,null,null,null,null,null,{"$f":"Octubre!C51","v":0}]
[48,{"$f":"INDEX(Configuración!$A$3:'Configuración'!$B$52,A52,2)","v":"-"},0,null,null,null,null,null,null,null,null,{"$f":"Octubre!C52","v":0}]
[49,{"$f":"INDEX(Configuración!$A$3:'Configuración'!$B$52,A53,2)","v":"-"},0,null,null,null,null,null,null,null,null,{"$f":"Octubre!C53","v":0}]
[50,{"$f":"INDEX(Configuración!$A$3:'Configuración'!$B$52,A54,2)","v":"-"},0,null,null,null,null,null,null,null,null,{"$f":"Octubre!C54","v":0}]

{"sheet":"Diciembre","index":11,"n_rows":54,"n_cols":12,"rows_kept":54,"cut":false,"hidden":false,"merged":[]}
[null,"INFORME RENPRE MES","DICIEMBRE",{"$f":"Configuración!E2","v":2018},"SECCION",{"$f":"Configuración!G2","v":"TOXICO"}]
[]
[null,null,"STOCK","INGRESO 1","INGRESO 1","INGRESO 1","INGRESO 2","INGRESO 2","INGRESO 2","MERMA",null,"STOCK"]
["N°","SUSTANCIA CONTROLADA","ACTUAL","FECHA","CANTIDAD","REMITO","FECHA","CANTIDAD","REMITO","MENSUAL","OBSERVACIONES","ANTERIOR"]
[1,{"$f":"INDEX(Configuración!$A$3:'Configuración'!$B$52,A5,2)","v":"Acetato Etílico (en litros)"},{"$f":"$L5+$E5+$H5-$J5","v":0},null,null,null,null,null,null,null,null,{"$f":"Noviembre!C5","v":0}]
[2,{"$f":"INDEX(Configuración!$A$3:'Configuración'!$B$52,A6,2)","v":"Acetona (en litros)"},{"$f":"$L6+$E6+$H6-$J6","v":0},null,null,null,null,null,null,null,null,{"$f":"Noviembre!C6","v":0}]
[3,{"$f":"INDEX(Configuración!$A$3:'Configuración'!$B$52,A7,2)","v":"Acido Acético (en litros)"},0,null,null,null,null,null,null,null,null,{"$f":"Noviembre!C7","v":0}]
[4,{"$f":"INDEX(Configuración!$A$3:'Configuración'!$B$52,A8,2)","v":"Acido Clorhídrico (en litros)"},0,null,null,null,null,null,null,null,null,{"$f":"Noviembre!C8","v":0}]
[5,{"$f":"INDEX(Configuración!$A$3:'Configuración'!$B$52,A9,2)","v":"Acido Fórmico, sales y sus derivados (en litros)"},0,null,null,null,null,null,null,null,null,{"$f":"Noviembre!C9","v":0}]
[6,{"$f":"INDEX(Configuración!$A$3:'Configuración'!$B$52,A10,2)","v":"Acido Sulfúrico (en litros)"},0,null,null,null,null,null,null,null,null,{"$f":"Noviembre!C10","v":0}]
[7,{"$f":"INDEX(Configuración!$A$3:'Configuración'!$B$52,A11,2)","v":"Alcohol Etílico (en litros)"},0,null,null,null,null,null,null,null,null,{"$f":"Noviembre!C11","v":0}]
[8,{"$f":"INDEX(Configuración!$A$3:'Configuración'!$B$52,A12,2)","v":"Alcohol Isobutílico (en litros)"},0,null,null,null,null,null,null,null,null,{"$f":"Noviembre!C12","v":0}]
[9,{"$f":"INDEX(Configuración!$A$3:'Configuración'!$B$52,A13,2)","v":"Alcohol Isopropílico (en litros)"},0,null,null,null,null,null,null,null,null,{"$f":"Noviembre!C13","v":0}]
[10,{"$f":"INDEX(Configuración!$A$3:'Configuración'!$B$52,A14,2)","v":"Alcohol Metílico (en litros)"},0,null,null,null,null,null,null,null,null,{"$f":"Noviembre!C14","v":0}]
[11,{"$f":"INDEX(Configuración!$A$3:'Configuración'!$B$52,A15,2)","v":"Amoníaco Anhídro o en disolución acuosa (en litros)"},0,null,null,null,null,null,null,null,null,{"$f":"Noviembre!C15","v":0}]
[12,{"$f":"INDEX(Configuración!$A$3:'Configuración'!$B$52,A16,2)","v":"Anhídrido Acético (en litros)"},0,null,null,null,null,null,null,null,null,{"$f":"Noviembre!C16","v":0}]
[13,{"$f":"INDEX(Configuración!$A$3:'Configuración'!$B$52,A17,2)","v":"Benceno (en litros)"},0,null,null,null,null,null,null,null,null,{"$f":"Noviembre!C17","v":0}]
[14,{"$f":"INDEX(Configuración!$A$3:'Configuración'!$B$52,A18,2)","v":"Bicarbonato de Sodio (en kilogramos)"},0,null,null,null,null,null,null,null,null,{"$f":"Noviembre!C18","v":0}]
[15,{"$f":"INDEX(Configuración!$A$3:'Configuración'!$B$52,A19,2)","v":"Carbonato de Potasio (en kilogramos)"},0,null,null,null,null,null,null,null,null,{"$f":"Noviembre!C19","v":0}]
[16,{"$f":"INDEX(Configuración!$A$3:'Configuración'!$B$52,A20,2)","v":"Carbonato de Sodio (en kilogramos)"},0,null,null,null,null,null,null,null,null,{"$f":"Noviembre!C20","v":0}]
[17,{"$f":"INDEX(Configuración!$A$3:'Configuración'!$B$52,A21,2)","v":"Cianuro de Potasio (en kilogramos)"},0,null,null,null,null,null,null,null,null,{"$f":"Noviembre!C21","v":0}]
[18,{"$f":"INDEX(Configuración!$A$3:'Configuración'!$B$52,A22,2)","v":"Cianuro de Sodio (en kilogramos)"},0,null,null,null,null,null,null,null,null,{"$f":"Noviembre!C22","v":0}]
[19,{"$f":"INDEX(Configuración!$A$3:'Configuración'!$B$52,A23,2)","v":"Cloroformo (en litros)"},0,null,null,null,null,null,null,null,null,{"$f":"Noviembre!C23","v":0}]
[20,{"$f":"INDEX(Configuración!$A$3:'Configuración'!$B$52,A24,2)","v":"Cloruro de Amonio (en kilogramos)"},0,null,null,null,null,null,null,null,null,{"$f":"Noviembre!C24","v":0}]
[21,{"$f":"INDEX(Configuración!$A$3:'Configuración'!$B$52,A25,2)","v":"Cloruro de Metileno (en litros)"},0,null,null,null,null,null,null,null,null,{"$f":"Noviembre!C25","v":0}]
[22,{"$f":"INDEX(Configuración!$A$3:'Configuración'!$B$52,A26,2)","v":"Dietilamina (en litros)"},0,null,null,null,null,null,null,null,null,{"$f":"Noviembre!C26","v":0}]
[23,{"$f":"INDEX(Configuración!$A$3:'Configuración'!$B$52,A27,2)","v":"Eter Etílico (en litros)"},0,null,null,null,null,null,null,null,null,{"$f":"Noviembre!C27","v":0}]
[24,{"$f":"INDEX(Configuración!$A$3:'Configuración'!$B$52,A28,2)","v":"Hexano (en litros)"},0,null,null,null,null,null,null,null,null,{"$f":"Noviembre!C28","v":0}]
[25,{"$f":"INDEX(Configuración!$A$3:'Configuración'!$B$52,A29,2)","v":"Hidróxido de Potasio (en kilogramos)"},0,null,null,null,null,null,null,null,null,{"$f":"Noviembre!C29","v":0}]
[26,{"$f":"INDEX(Configuración!$A$3:'Configuración'!$B$52,A30,2)","v":"Hidróxido de Sodio (en kilogramos)"},0,null,null,null,null,null,null,null,null,{"$f":"Noviembre!C30","v":0}]
[27,{"$f":"INDEX(Configuración!$A$3:'Configuración'!$B$52,A31,2)","v":"Oxido de Calcio (en kilogramos)"},0,null,null,null,null,null,null,null,null,{"$f":"Noviembre!C31","v":0}]
[28,{"$f":"INDEX(Configuración!$A$3:'Configuración'!$B$52,A32,2)","v":"Permanganato de Potasio (en kilogramos)"},0,null,null,null,null,null,null,null,null,{"$f":"Noviembre!C32","v":0}]
[29,{"$f":"INDEX(Configuración!$A$3:'Configuración'!$B$52,A33,2)","v":"Piperidina (en litros)"},0,null,null,null,null,null,null,null,null,{"$f":"Noviembre!C33","v":0}]
[30,{"$f":"INDEX(Configuración!$A$3:'Configuración'!$B$52,A34,2)","v":"Sulfato de Sodio (en kilogramos)"},0,null,null,null,null,null,null,null,null,{"$f":"Noviembre!C34","v":0}]
[31,{"$f":"INDEX(Configuración!$A$3:'Configuración'!$B$52,A35,2)","v":"Tolueno (en litros)"},0,null,null,null,null,null,null,null,null,{"$f":"Noviembre!C35","v":0}]
[32,{"$f":"INDEX(Configuración!$A$3:'Configuración'!$B$52,A36,2)","v":"Xilenos (en litros)"},0,null,null,null,null,null,null,null,null,{"$f":"Noviembre!C36","v":0}]
[33,{"$f":"INDEX(Configuración!$A$3:'Configuración'!$B$52,A37,2)","v":"Yodo (en litros)"},0,null,null,null,null,null,null,null,null,{"$f":"Noviembre!C37","v":0}]
[34,{"$f":"INDEX(Configuración!$A$3:'Configuración'!$B$52,A38,2)","v":"-"},0,null,null,null,null,null,null,null,null,{"$f":"Noviembre!C38","v":0}]
[35,{"$f":"INDEX(Configuración!$A$3:'Configuración'!$B$52,A39,2)","v":"-"},0,null,null,null,null,null,null,null,null,{"$f":"Noviembre!C39","v":0}]
[36,{"$f":"INDEX(Configuración!$A$3:'Configuración'!$B$52,A40,2)","v":"-"},0,null,null,null,null,null,null,null,null,{"$f":"Noviembre!C40","v":0}]
[37,{"$f":"INDEX(Configuración!$A$3:'Configuración'!$B$52,A41,2)","v":"-"},0,null,null,null,null,null,null,null,null,{"$f":"Noviembre!C41","v":0}]
[38,{"$f":"INDEX(Configuración!$A$3:'Configuración'!$B$52,A42,2)","v":"-"},0,null,null,null,null,null,null,null,null,{"$f":"Noviembre!C42","v":0}]
[39,{"$f":"INDEX(Configuración!$A$3:'Configuración'!$B$52,A43,2)","v":"-"},0,null,null,null,null,null,null,null,null,{"$f":"Noviembre!C43","v":0}]
[40,{"$f":"INDEX(Configuración!$A$3:'Configuración'!$B$52,A44,2)","v":"-"},0,null,null,null,null,null,null,null,null,{"$f":"Noviembre!C44","v":0}]
[41,{"$f":"INDEX(Configuración!$A$3:'Configuración'!$B$52,A45,2)","v":"-"},0,null,null,null,null,null,null,null,null,{"$f":"Noviembre!C45","v":0}]
[42,{"$f":"INDEX(Configuración!$A$3:'Configuración'!$B$52,A46,2)","v":"-"},0,null,null,null,null,null,null,null,null,{"$f":"Noviembre!C46","v":0}]
[43,{"$f":"INDEX(Configuración!$A$3:'Configuración'!$B$52,A47,2)","v":"-"},0,null,null,null,null,null,null,null,null,{"$f":"Noviembre!C47","v":0}]
[44,{"$f":"INDEX(Configuración!$A$3:'Configuración'!$B$52,A48,2)","v":"-"},0,null,null,null,null,null,null,null,null,{"$f":"Noviembre!C48","v":0}]
[45,{"$f":"INDEX(Configuración!$A$3:'Configuración'!$B$52,A49,2)","v":"-"},0,null,null,null,null,null,null,null,null,{"$f":"Noviembre!C49","v":0}]
[46,{"$f":"INDEX(Configuración!$A$3:'Configuración'!$B$52,A50,2)","v":"-"},0,null,null,null,null,null,null,null,null,{"$f":"Noviembre!C50","v":0}]
[47,{"$f":"INDEX(Configuración!$A$3:'Configuración'!$B$52,A51,2)","v":"-"},0,null,null,null,null,null,null,null,null,{"$f":"Noviembre!C51","v":0}]
[48,{"$f":"INDEX(Configuración!$A$3:'Configuración'!$B$52,A52,2)","v":"-"},0,null,null,null,null,null,null,null,null,{"$f":"Noviembre!C52","v":0}]
[49,{"$f":"INDEX(Configuración!$A$3:'Configuración'!$B$52,A53,2)","v":"-"},0,null,null,null,null,null,null,null,null,{"$f":"Noviembre!C53","v":0}]
[50,{"$f":"INDEX(Configuración!$A$3:'Configuración'!$B$52,A54,2)","v":"-"},0,null,null,null,null,null,null,null,null,{"$f":"Noviembre!C54","v":0}]

{"sheet":"Informe","index":12,"n_rows":0,"n_cols":0,"rows_kept":0,"cut":false,"hidden":false,"merged":[]}

{"sheet":"Configuración","index":13,"n_rows":52,"n_cols":7,"rows_kept":52,"cut":false,"hidden":false,"merged":[]}
[null,null,"STOCK",null,"AÑO",null,"LABORATORIO"]
[null,"SUSTANCIA CONTROLADA","AÑO ANTERIOR",null,2018,null,"TOXICO"]
[1,"Acetato Etílico (en litros)"]
[2,"Acetona (en litros)",null,null,"CONTRASEÑA",null,"TOXICO"]
[3,"Acido Acético (en litros)",null,null,"PERICIAL",null,"AP"]
[4,"Acido Clorhídrico (en litros)",null,null,null,null,"ADN"]
[5,"Acido Fórmico, sales y sus derivados (en litros)"]
[6,"Acido Sulfúrico (en litros)"]
[7,"Alcohol Etílico (en litros)"]
[8,"Alcohol Isobutílico (en litros)"]
[9,"Alcohol Isopropílico (en litros)"]
[10,"Alcohol Metílico (en litros)"]
[11,"Amoníaco Anhídro o en disolución acuosa (en litros)"]
[12,"Anhídrido Acético (en litros)"]
[13,"Benceno (en litros)"]
[14,"Bicarbonato de Sodio (en kilogramos)"]
[15,"Carbonato de Potasio (en kilogramos)"]
[16,"Carbonato de Sodio (en kilogramos)"]
[17,"Cianuro de Potasio (en kilogramos)"]
[18,"Cianuro de Sodio (en kilogramos)"]
[19,"Cloroformo (en litros)"]
[20,"Cloruro de Amonio (en kilogramos)"]
[21,"Cloruro de Metileno (en litros)"]
[22,"Dietilamina (en litros)"]
[23,"Eter Etílico (en litros)"]
[24,"Hexano (en litros)"]
[25,"Hidróxido de Potasio (en kilogramos)"]
[26,"Hidróxido de Sodio (en kilogramos)"]
[27,"Oxido de Calcio (en kilogramos)"]
[28,"Permanganato de Potasio (en kilogramos)"]
[29,"Piperidina (en litros)"]
[30,"Sulfato de Sodio (en kilogramos)"]
[31,"Tolueno (en litros)"]
[32,"Xilenos (en litros)"]
[33,"Yodo (en litros)"]
[34,"-"]
[35,"-"]
[36,"-"]
[37,"-"]
[38,"-"]
[39,"-"]
[40,"-"]
[41,"-"]
[42,"-"]
[43,"-"]
[44,"-"]
[45,"-"]
[46,"-"]
[47,"-"]
[48,"-"]
[49,"-"]
[50,"-"]